{"text_format":"1","workbook":"xlsx","n_sheets":1,"sheets":["様式"],"not_rendered":{"charts":0,"images":0,"macros":1,"external_links":0,"defined_names":1,"comments":0,"pivot_tables":0},"unopened":[],"bounds":{"document_bytes":16777216,"sheet_cells":100000,"rows_first":2000,"rows_last":500,"rows_between":2000,"halvings":0,"cell_chars":16384,"cell_head_chars":4096},"cells_cut":0,"cells_raw":0,"read":"whole","date_system":"1900"}

{"sheet":"様式","index":0,"n_rows":262,"n_cols":24,"rows_kept":262,"cut":false,"hidden":false,"merged":[[11,13,14,13],[13,3,13,4],[8,5,8,8],[8,9,8,10],[8,11,8,12],[13,5,14,5],[18,13,20,13],[19,5,20,6],[19,7,20,7],[19,8,20,8],[18,11,18,12],[13,11,14,11],[13,12,14,12],[19,11,20,11],[19,12,20,12],[2,0,2,10],[3,15,5,16],[4,0,4,2],[4,3,4,9],[5,0,5,2],[5,3,5,9],[8,13,10,13],[9,5,10,6],[9,7,10,7],[9,8,10,8],[9,11,10,11],[9,12,10,12],[7,0,7,2],[7,4,7,6],[8,0,10,0],[8,1,10,1],[8,2,10,2],[8,3,8,4],[17,0,17,2],[17,4,17,6],[18,0,20,0],[18,1,20,1],[18,2,20,2],[18,3,18,4],[18,5,18,8],[18,9,18,10],[11,0,14,0],[11,1,14,1],[11,2,14,2],[13,6,14,6],[13,7,14,7],[13,8,14,8],[11,3,12,3],[11,4,12,4],[11,9,14,9],[11,10,14,10],[14,3,14,4],[33,0,36,0],[33,1,36,1],[33,2,36,2],[33,3,34,3],[33,4,34,4],[33,9,36,9],[33,10,36,10],[36,3,36,4],[21,0,24,0],[21,1,24,1],[21,2,24,2],[21,3,22,3],[21,4,22,4],[21,9,24,9],[21,10,24,10],[25,0,28,0],[25,1,28,1],[25,2,28,2],[25,3,26,3],[25,4,26,4],[25,9,28,9],[33,13,36,13],[35,3,35,4],[35,5,36,5],[35,6,36,6],[35,7,36,7],[35,8,36,8],[35,11,36,11],[35,12,36,12],[41,0,44,0],[41,1,44,1],[41,2,44,2],[41,3,42,3],[41,4,42,4],[41,9,44,9],[41,10,44,10],[37,0,40,0],[37,1,40,1],[37,2,40,2],[37,3,38,3],[37,4,38,4],[37,9,40,9],[44,3,44,4],[41,13,44,13],[39,12,40,12],[40,3,40,4],[37,10,40,10],[37,13,40,13],[39,3,39,4],[39,5,40,5],[39,6,40,6],[39,7,40,7],[39,8,40,8],[39,11,40,11],[43,3,43,4],[43,5,44,5],[43,6,44,6],[43,7,44,7],[43,8,44,8],[43,11,44,11],[43,12,44,12],[21,13,24,13],[23,3,23,4],[23,5,24,5],[23,6,24,6],[23,7,24,7],[23,8,24,8],[23,11,24,11],[23,12,24,12],[24,3,24,4],[25,10,28,10],[25,13,28,13],[27,3,27,4],[27,5,28,5],[27,6,28,6],[27,7,28,7],[27,8,28,8],[27,11,28,11],[27,12,28,12],[28,3,28,4],[29,0,32,0],[29,1,32,1],[29,2,32,2],[29,3,30,3],[29,4,30,4],[29,9,32,9],[29,10,32,10],[29,13,32,13],[31,3,31,4],[31,5,32,5],[31,6,32,6],[31,7,32,7],[31,8,32,8],[31,11,32,11],[31,12,32,12],[32,3,32,4],[47,0,47,2],[47,4,47,6],[48,0,50,0],[48,1,50,1],[48,2,50,2],[48,3,48,4],[48,5,48,8],[48,9,48,10],[48,11,48,12],[48,13,50,13],[49,5,50,6],[49,7,50,7],[49,8,50,8],[49,11,50,11],[49,12,50,12],[51,0,54,0],[51,1,54,1],[51,2,54,2],[51,3,52,3],[51,4,52,4],[51,9,54,9],[51,10,54,10],[51,13,54,13],[53,3,53,4],[53,5,54,5],[53,6,54,6],[53,7,54,7],[53,8,54,8],[53,11,54,11],[53,12,54,12],[54,3,54,4],[55,0,58,0],[55,1,58,1],[55,2,58,2],[55,3,56,3],[55,4,56,4],[55,9,58,9],[55,10,58,10],[55,13,58,13],[57,3,57,4],[57,5,58,5],[57,6,58,6],[57,7,58,7],[57,8,58,8],[57,11,58,11],[57,12,58,12],[58,3,58,4],[65,0,68,0],[65,1,68,1],[65,2,68,2],[65,3,66,3],[65,4,66,4],[67,3,67,4],[67,5,68,5],[67,6,68,6],[67,7,68,7],[68,3,68,4],[62,13,64,13],[65,9,68,9],[65,10,68,10],[65,13,68,13],[67,8,68,8],[67,11,68,11],[67,12,68,12],[62,9,62,10],[62,11,62,12],[63,11,64,11],[63,12,64,12],[73,0,76,0],[73,1,76,1],[73,2,76,2],[73,3,74,3],[73,4,74,4],[73,9,76,9],[80,13,82,13],[80,9,80,10],[80,11,80,12],[81,11,82,11],[81,12,82,12],[73,10,76,10],[75,3,75,4],[75,5,76,5],[75,6,76,6],[75,7,76,7],[75,8,76,8],[75,11,76,11],[75,12,76,12],[76,3,76,4],[73,13,76,13],[69,0,72,0],[69,1,72,1],[69,2,72,2],[69,3,70,3],[69,4,70,4],[69,9,72,9],[69,10,72,10],[69,13,72,13],[71,3,71,4],[71,5,72,5],[71,6,72,6],[71,7,72,7],[71,8,72,8],[71,11,72,11],[71,12,72,12],[72,3,72,4],[87,0,90,0],[87,1,90,1],[87,2,90,2],[87,3,88,3],[87,4,88,4],[86,3,86,4],[79,0,79,2],[79,4,79,6],[80,0,82,0],[80,1,82,1],[80,2,82,2],[80,3,80,4],[80,5,80,8],[83,0,86,0],[83,1,86,1],[83,2,86,2],[83,3,84,3],[83,4,84,4],[81,5,82,6],[81,7,82,7],[81,8,82,8],[87,13,90,13],[89,3,89,4],[89,5,90,5],[89,6,90,6],[89,7,90,7],[89,8,90,8],[89,11,90,11],[89,12,90,12],[90,3,90,4],[93,6,94,6],[93,7,94,7],[93,8,94,8],[93,11,94,11],[93,12,94,12],[94,3,94,4],[91,3,92,3],[91,4,92,4],[87,9,90,9],[87,10,90,10],[95,0,98,0],[95,1,98,1],[95,2,98,2],[95,3,96,3],[95,4,96,4],[91,9,94,9],[91,10,94,10],[91,13,94,13],[91,0,94,0],[91,1,94,1],[91,2,94,2],[95,9,98,9],[95,10,98,10],[95,13,98,13],[97,3,97,4],[97,5,98,5],[97,6,98,6],[97,7,98,7],[97,8,98,8],[97,11,98,11],[97,12,98,12],[98,3,98,4],[93,3,93,4],[93,5,94,5],[105,11,106,11],[105,12,106,12],[106,3,106,4],[99,13,102,13],[101,3,101,4],[101,5,102,5],[101,6,102,6],[101,7,102,7],[101,8,102,8],[101,11,102,11],[101,12,102,12],[102,3,102,4],[99,3,100,3],[99,4,100,4],[103,13,106,13],[109,4,109,6],[109,0,109,2],[99,9,102,9],[99,10,102,10],[99,0,102,0],[99,1,102,1],[99,2,102,2],[103,0,106,0],[103,1,106,1],[103,2,106,2],[103,3,104,3],[103,4,104,4],[105,3,105,4],[105,5,106,5],[105,6,106,6],[105,7,106,7],[105,8,106,8],[103,9,106,9],[103,10,106,10],[110,13,112,13],[111,5,112,6],[111,7,112,7],[111,8,112,8],[111,11,112,11],[111,12,112,12],[113,13,116,13],[113,0,116,0],[113,1,116,1],[113,2,116,2],[113,3,114,3],[113,4,114,4],[110,3,110,4],[110,5,110,8],[110,9,110,10],[110,11,110,12],[117,9,120,9],[117,10,120,10],[117,13,120,13],[115,3,115,4],[115,5,116,5],[115,6,116,6],[115,7,116,7],[115,8,116,8],[115,11,116,11],[115,12,116,12],[116,3,116,4],[113,9,116,9],[113,10,116,10],[117,3,118,3],[117,4,118,4],[121,0,124,0],[121,1,124,1],[121,2,124,2],[125,9,128,9],[125,10,128,10],[125,13,128,13],[127,3,127,4],[127,5,128,5],[127,6,128,6],[127,7,128,7],[127,8,128,8],[127,11,128,11],[127,12,128,12],[128,3,128,4],[125,3,126,3],[125,4,126,4],[123,3,123,4],[123,5,124,5],[123,6,124,6],[123,7,124,7],[121,13,124,13],[123,8,124,8],[123,11,124,11],[123,12,124,12],[129,0,132,0],[129,1,132,1],[129,2,132,2],[129,3,130,3],[129,4,130,4],[61,0,61,2],[61,4,61,6],[62,0,64,0],[62,1,64,1],[62,2,64,2],[62,3,62,4],[62,5,62,8],[63,5,64,6],[63,7,64,7],[63,8,64,8],[125,0,128,0],[125,1,128,1],[125,2,128,2],[117,0,120,0],[117,1,120,1],[117,2,120,2],[110,0,112,0],[110,1,112,1],[110,2,112,2],[83,9,86,9],[83,10,86,10],[83,13,86,13],[85,3,85,4],[85,5,86,5],[85,6,86,6],[85,7,86,7],[85,8,86,8],[85,11,86,11],[85,12,86,12],[129,13,132,13],[119,3,119,4],[119,5,120,5],[119,6,120,6],[119,7,120,7],[119,8,120,8],[119,11,120,11],[119,12,120,12],[120,3,120,4],[124,3,124,4],[121,3,122,3],[131,3,131,4],[131,5,132,5],[131,6,132,6],[131,7,132,7],[131,8,132,8],[131,11,132,11],[131,12,132,12],[132,3,132,4],[129,9,132,9],[129,10,132,10],[121,4,122,4],[121,9,124,9],[121,10,124,10],[135,0,135,2],[135,4,135,6],[136,0,138,0],[136,1,138,1],[136,2,138,2],[136,3,136,4],[136,5,136,8],[136,9,136,10],[136,11,136,12],[136,13,138,13],[137,5,138,6],[137,7,138,7],[137,8,138,8],[137,11,138,11],[137,12,138,12],[139,0,142,0],[139,1,142,1],[139,2,142,2],[139,3,140,3],[139,4,140,4],[139,9,142,9],[139,10,142,10],[139,13,142,13],[141,3,141,4],[141,5,142,5],[141,6,142,6],[141,7,142,7],[141,8,142,8],[141,11,142,11],[141,12,142,12],[142,3,142,4],[143,0,146,0],[143,1,146,1],[143,2,146,2],[143,3,144,3],[143,4,144,4],[143,9,146,9],[143,10,146,10],[143,13,146,13],[145,3,145,4],[145,5,146,5],[145,6,146,6],[145,7,146,7],[145,8,146,8],[145,11,146,11],[145,12,146,12],[146,3,146,4],[147,0,150,0],[147,1,150,1],[147,2,150,2],[147,3,148,3],[147,4,148,4],[147,9,150,9],[147,10,150,10],[147,13,150,13],[149,3,149,4],[149,5,150,5],[149,6,150,6],[149,7,150,7],[149,8,150,8],[149,11,150,11],[149,12,150,12],[150,3,150,4],[153,0,153,2],[153,4,153,6],[154,0,156,0],[154,1,156,1],[154,2,156,2],[154,3,154,4],[154,5,154,8],[154,9,154,10],[154,11,154,12],[154,13,156,13],[155,5,156,6],[155,7,156,7],[155,8,156,8],[155,11,156,11],[155,12,156,12],[157,0,160,0],[157,1,160,1],[157,2,160,2],[157,3,158,3],[157,4,158,4],[157,9,160,9],[157,10,160,10],[157,13,160,13],[159,3,159,4],[159,5,160,5],[159,6,160,6],[159,7,160,7],[159,8,160,8],[159,11,160,11],[159,12,160,12],[160,3,160,4],[163,0,163,2],[163,4,163,6],[164,0,166,0],[164,1,166,1],[164,2,166,2],[164,3,164,4],[164,5,164,8],[164,9,164,10],[164,11,164,12],[164,13,166,13],[165,5,166,6],[165,7,166,7],[165,8,166,8],[165,11,166,11],[165,12,166,12],[167,0,170,0],[167,1,170,1],[167,2,170,2],[167,3,168,3],[167,4,168,4],[167,9,170,9],[167,10,170,10],[167,13,170,13],[169,3,169,4],[169,5,170,5],[169,6,170,6],[169,7,170,7],[169,8,170,8],[169,11,170,11],[169,12,170,12],[170,3,170,4],[177,0,180,0],[177,1,180,1],[177,2,180,2],[177,3,178,3],[177,4,178,4],[177,9,180,9],[177,10,180,10],[177,13,180,13],[173,0,173,2],[173,4,173,6],[174,0,176,0],[174,1,176,1],[174,2,176,2],[174,3,174,4],[174,5,174,8],[174,9,174,10],[174,11,174,12],[179,3,179,4],[179,5,180,5],[179,6,180,6],[179,7,180,7],[179,8,180,8],[179,11,180,11],[179,12,180,12],[174,13,176,13],[175,5,176,6],[175,7,176,7],[175,8,176,8],[175,11,176,11],[175,12,176,12],[184,13,186,13],[185,5,186,6],[185,7,186,7],[185,8,186,8],[185,11,186,11],[185,12,186,12],[189,7,190,7],[189,8,190,8],[189,11,190,11],[189,12,190,12],[190,3,190,4],[194,5,194,8],[180,3,180,4],[187,9,190,9],[187,10,190,10],[187,13,190,13],[184,9,184,10],[184,11,184,12],[197,13,200,13],[194,13,196,13],[199,3,199,4],[199,5,200,5],[199,6,200,6],[199,7,200,7],[199,8,200,8],[199,11,200,11],[200,3,200,4],[198,9,200,9],[198,12,200,12],[197,10,200,10],[195,5,196,6],[195,7,196,7],[195,8,196,8],[195,11,196,11],[195,12,196,12],[194,9,194,10],[194,11,194,12],[189,5,190,5],[189,6,190,6],[187,0,190,0],[187,1,190,1],[187,2,190,2],[183,0,183,2],[183,4,183,6],[184,0,186,0],[184,1,186,1],[184,2,186,2],[197,0,200,0],[197,1,200,1],[197,2,200,2],[197,3,198,3],[197,4,198,4],[184,3,184,4],[184,5,184,8],[193,0,193,2],[193,4,193,6],[194,0,196,0],[194,1,196,1],[194,2,196,2],[194,3,194,4],[187,3,188,3],[187,4,188,4],[189,3,189,4]]}
[]
[]
["主要事務事業戦略シート"]
[]
["局・区の使命",null,null,"道路、河川、下水道などの生活基盤整備及び適正な管理を行い、将来にわたって安全・安心・快適に生活できるまちづくりを進めます。"]
["事業選択・重点化・見直しの考え方",null,null,"地震・風水害等へ備えた防災・減災対策、地域力を支える社会インフラの構築（効果的な維持管理と着実な整備）、安全な移動を確保するための交通安全の推進を重点的に進める。これにより、「安全・安心なまち」、「生産性の向上による経済成長が期待できるまち」を目指す。\n　重点化する事業（分野）： 防災・減災対策、社会インフラの維持管理、交通安全、道路ネットワークの形成\n　見直しする（予定）の事業： 老朽化した下水道施設（ポンプ場）の再構築"]
[]
["施策",null,null,"1-3-3",{"$f":"IF(D8=\"\",\"←施策番号を選択してください。\",VLOOKUP(D8,W$204:X$1139,2,1))","v":"良好な生活環境の確保"},null,null,"下水道事業会計"]
["No.","新規","事務事業（業務）名","事務事業（業務）概要",null,"現状分析",null,null,null,"課題抽出",null,"今後の方向性",null,"所管課"]
[null,null,null,"目標（目的）","主な内容","事務事業（業務）に\n必要な行政資源",null,"コスト換算\n（単位：百万円）","行政コストの合計額\n（単位：百万円）","主な実績・効果","分析・評価","改善・改革の\n手法","今後の方向性"]
[null,null,null,"【（事務事業（業務）を行い）誰（何）が、どのような状態になることを目指すのか】","【サービス等の提供内容や提供先】",null,null,null,null,"【利用者数・件数等】","【現在どのような状態で、どのような課題があるのか】"]
["1",null,"高度処理施設の整備","・高度処理施設を整備し、下水処理水に含まれる窒素、りんを除去することにより、閉鎖性水域である東京湾の富栄養化を防止し、海辺の水質改善を図る。\n・平成32年度までに、高度処理人口普及率を44.7%にする。（千葉県花見川終末及び第二終末処理場の高度処理施設整備を含む）","（提供内容）\n浄化センターにおける高度処理施設の整備\n・中央浄化センターの高度処理施設の整備\n（1/3系列、24,680㎥/日）\n※平成27年度～平成32年度事業\n\n（提供先）\n海辺の利用者","ヒト","職員5.25人\n（正規5.25人）",46,{"$f":"SUM(H12:H15)","v":1468},"・南部浄化センター全体で187,400㎥/日の施設が高度処理として稼働中\n\n・高度処理人口普及率の推移\n　平成27年度末　38.9%\n　平成28年度末　40.6%\n\n高度処理施設の整備を計画的に進めることにより、海辺の水質改善を図ることができる。","「東京湾流域別下水道整備総合計画（千葉県）」及び「東京湾再生のための行動計画」において、下水道が担うべき高度処理水質のレベルが設定されているため、高度処理施設の整備を進める必要がある。\n平成27年度に中央浄化センターにおいて高度処理施設の整備に着手し、平成32年度完成を目指し事業は順調に進捗しており、平成32年度末には、高度処理人口普及率44.7%となる。\n引き続き事業の推進を図るため、より一層の財源確保（国費）と経費の節減に努めていく必要がある。","② 課題抑制","最新の工法や材料を取り入れることなどにより、更なる建設コストの低減を図る。","下水道計画課"]
[null,null,null,null,null,"モノ","なし",0,"＜参考＞\n前年度決算額"]
[null,null,null,"他都市等の状況",null,"カネ","歳出予算額\n1,422百万円\n【主なもの】\n水処理施設建設工事\n請負費\n1,364百万円",1422,"歳出決算額　649百万円"]
[null,null,null,"東京湾を放流先とする他都市の高度処理人口普及率\n・東京都区部：17.0%\n・横浜市：46.1%\n・川崎市：27.3%\n（平成27年度末）"]
[]
[]
["施策",null,null,"4-1-1",{"$f":"IF(D18=\"\",\"←施策番号を選択してください。\",VLOOKUP(D18,W$204:X$1139,2,1))","v":"防災対策の推進"},null,null,"一般会計"]
["No.","新規","事務事業（業務）名","事務事業（業務）概要",null,"現状分析",null,null,null,"課題抽出",null,"今後の方向性",null,"所管課"]
[null,null,null,"目標（目的）","主な内容","事務事業（業務）に\n必要な行政資源",null,"コスト換算\n（単位：百万円）","行政コストの合計額\n（単位：百万円）","主な実績・効果","分析・評価","改善・改革の\n手法","今後の方向性"]
[null,null,null,"【（事務事業（業務）を行い）誰（何）が、どのような状態になることを目指すのか】","【サービス等の提供内容や提供先】",null,null,null,null,"【利用者数・件数等】","【現在どのような状態で、どのような課題があるのか】"]
["1",null,"橋りょう耐震化","道路の利用者が、災害等の緊急時に輸送路や避難路として安全に通行できる。","（提供内容）\n耐震化の必要がある橋梁139橋の耐震補強\n\n（提供先）\n道路の利用者","ヒト","職員2.29人\n（うち正規2.29人）",20,{"$f":"SUM(H22:H25)","v":947},"全体計画139橋のうち125橋完了（平成28年度末）","緊急輸送道路に関する橋梁の耐震化が平成26年度に完了し、現在は、鉄道を跨ぐ橋梁の耐震化を実施しているが、高額な事業費が課題となっている。\n引き続き事業の推進を図るため、より一層の財源確保（国費）と経費の節減に努めていく必要がある。","① 調達改革","橋梁補修と耐震補強の一体施工による仮設費用の縮減を行いコスト低減を図る。","土木保全課"]
[null,null,null,null,null,"モノ","―","―","＜参考＞\n前年度決算額",null,null,"② 課題抑制","最新の工法や材料を取り入れることなどにより、更なる建設コストの低減を図る。"]
[null,null,null,"他都市等の状況",null,"カネ","歳出予算額927百万円\n（うち一般財源2百万円）\n【主なもの】\n工事請負費339百万円\n委託料       588百万円",927,"歳出決算額244百万円\n（うち一般財源\n                   0.3百万円）\n\n平成29年度への繰越分\n　　　　　　　　461百万円"]
[]
["2",null,"河川の改修","河川を改修することにより、氾濫による被害や流域内の浸水被害を軽減する。\n\n・坂月川\n 10年に1回程度の降雨に対応\n・勝田川\n3年に1回程度の降雨に対応\n・支川都川\n10年に1回程度の降雨に対応","（提供内容）\n二級河川坂月川の改修\n　L=2,926m\n一級河川勝田川\n　　L=3,530m\n二級河川支川都川\n　　L=3,540m\n\n（提供先）\n流域内の市民及び河川の利用者","ヒト","職員7.40人\n（正規6.90人、\n　非常勤等0.50人）",61,{"$f":"SUM(H26:H29)","v":322},"改修状況　（平成28年度末）\n・坂月川 1,780m/2,926m=61%\n（10年に1回程度の降雨に対応)\n・勝田川 3,530m/3,530m=100%\n（3年に1回程度の降雨に対応)\n\n\n各「河川整備計画」に基づき、河川改修を進めており、河川の氾濫による被害や流域内の浸水被害が軽減されている。\nまた、多自然川づくりによる河川改修で、水辺環境の保全が図られている。\n","効率的に事業効果を発現させるため、下流部の河川の流下能力に併せ、段階的に整備を進めており、河川の氾濫による被害や流域内の浸水被害の早期軽減に取り組んでいる。\nまた、改修後も流下能力や施設機能を確保するため、維持管理を適正に行うなど、安心・安全の確保に努めている。\n引き続き事業の推進を図るため、より一層の財源の確保（国費）と経費の節減に努めていく必要がある。","② 課題抑制","最新の工法や材料を取り入れることなどにより、更なる建設コストの低減を図る。","都市河川課"]
[null,null,null,null,null,"モノ","－",0,"＜参考＞\n前年度決算額"]
[null,null,null,"他都市等の状況",null,"カネ","歳出予算額261百万円\n（うち一般財源\n            77百万円）\n【主なもの】\n工事請負費147百万円\n　河道築造工事ほか",261,"歳出決算額275百万円\n（うち一般財源\n            51百万円）"]
[null,null,null,"H28年度に河川事業を実施している政令都市\n：18政令都市"]
["3",null,"橋梁架替","橋梁を架け替えることにより、耐震性が強化され防災力が向上するとともに、歩道の設置や車道の拡幅を行うことで、道路利用者が安心して安全に道路等を利用することができる。","（提供内容）\n千葉市橋梁長寿命化修繕計画に基づく橋梁の架替（２橋）\n\n・柏井橋\n・亥鼻橋\n\n（提供先）\n道路の利用者","ヒト","職員3.56人\n（正規3.56人）",29,{"$f":"SUM(H30:H33)","v":596},"・実施状況（平成28年度末）\n柏井橋：仮橋設置完了\n　　　　　既設橋撤去中\n亥鼻橋：仮橋設置完了\n　　　　　既設橋撤去中\n\n","・橋梁の長寿命化を図り、予算の平準化と維持管理コストの縮減を行う、千葉市橋梁長寿命化修繕計画に基づき、架け替え時期を迎えた橋梁の架け換えを進めており、概ね計画どおり進捗している。\n　柏井橋：平成32年度供用予定\n　亥鼻橋：平成33年度供用予定\n\n・引き続き事業の推進を図るため、より一層の財源確保（国費）と経費の削減に努めていく必要がある。","② 課題抑制","最新の工法や材料を取り入れることなどにより、さらなる建設コストの低減を図る。","道路建設課"]
[null,null,null,null,null,"モノ","－","－","＜参考＞\n前年度決算額"]
[null,null,null,"他都市等の状況",null,"カネ","歳出予算額567百万円\n（うち一般財源29百万円）\n【主なもの】\n工事請負費552百万円",567,"歳出決算額336百万円（うち一般財源9百万円）"]
[null,null,null,"－"]
["4",null,"排水施設の整備","排水路を整備することにより、流域内の浸水被害を軽減することが出来る。","（提供内容）\n幹線排水路及び一般排水路の整備\n\n整備中の路線\n　・高田排水路東部支線\n　・辺田排水路\n　・宇那谷２号排水路\n及び一般排水路の整備\n\n（提供先）\n流域内の市民\n\n","ヒト","職員3.80人\n（正規3.60人、\n　非常勤等0.20人）",29,{"$f":"SUM(H34:H37)","v":145},"幹線排水路\n整備状況　（平成28年度末）\n・高田排水路東部支線\n　2,110m/2,398m=88%\n・辺田排水路\n　263m/460m=57%\n・宇那谷２号排水路\n　0m/1,750m=0%\n\n市全体\n整備状況　（平成28年度末）\n・幹線排水路　L= 65.6km\n・一般排水路　L=296.7km\n\n\n過去に大規模な浸水被害が発生している箇所について、計画的に事業を推進しており、確実に効果が得られている。\n","深刻な浸水被害が発生している箇所の排水路整備を重点的に推進することにより、大規模な浸水被害を効果的かつ早期に軽減している。\n引き続き事業の推進を図るため、より一層の経費の節減に努めていく必要がある。","② 課題抑制","最新の工法や材料を取り入れることなどにより、更なる建設コストの低減を図る。","都市河川課"]
[null,null,null,null,null,"モノ","－",0,"＜参考＞\n前年度決算額"]
[null,null,null,"他都市等の状況",null,"カネ","歳出予算額116百万円\n（うち一般財源\n                5百万円）\n【主なもの】\n・工事請負費64百万円\n　高田排水路東部支線ほか\n・用地取得費20百万円\n　宇那谷２号排水路",116,"歳出決算額111百万円\n（うち一般財源\n             5百万円）"]
[]
["5",null,"急傾斜地崩壊防止工事の推進","崩壊の危険性が高い崖地を急傾斜地崩壊危険区域に指定し、崩壊防止工事を進めることにより、市民の生命を保護することが出来る。","（提供内容）\n崩壊防止工事の推進\n\n整備中の箇所\n　・宮崎町\n　・園生町\n　・大椎町\n\n（提供先）\n急傾斜地崩壊危険区域内の市民","ヒト","職員3.00人\n（正規2.90人、\n　非常勤等0.10人）",23,{"$f":"SUM(H38:H41)","v":92},"現在施工箇所（市事業）\n整備状況　（平成28年度末）\n・宮崎町　65m/115m=57%\n　　施工予定年度 H25～H31\n・園生町127m/157m=81%\n　　施工予定年度H23～H29\n・大椎町　34m/113m=30%\n　　施工予定年度H28～H32\n　\n市全体\n整備状況　（平成28年度末）\n24箇所/96箇所=25%\n・市事業　L= 1,285m\n・県事業　L= 3,152m\n\n\n県の「急傾斜地崩壊対策要領」及び市の「指針」に基づき、崩壊の危険性が高い崖地について、順次崩壊防止施設の整備を進めることにより、市民から急傾斜地の崩壊による被災のリスクを軽減している。","崩壊の危険性が高い崖地について、早期に対策を講じることにより、市民の生命を保護することができる。\n市内の美浜区を除く５区には、対策が必要な急傾斜地が現在も多数あることから、引き続き事業の推進を図るため、より一層の財源の確保（県費）と経費の節減に努めていく必要がある。\n","② 課題抑制","最新の工法や材料を取り入れることなどにより、更なる建設コストの低減を図る。","都市河川課"]
[null,null,null,null,null,"モノ","－",0,"＜参考＞\n前年度決算額"]
[null,null,null,"他都市等の状況",null,"カネ","歳出予算額69百万円\n（うち一般財源\n               0百万円）\n【主なもの】\n・工事請負費60百万円\n　宮崎町２、園生町６、\n　大椎町２",69,"歳出決算額59百万円\n（うち一般財源\n                5百万円）"]
[]
["6",null,"電線共同溝整備","　災害時の電柱倒壊を無くし、道路の利用者が、歩きやすく安全で安心して通行できる。","（提供内容）\nバリアフリー経路等における電線共同溝の整備\n\n（提供先）\n道路の利用者\n沿道の電力等受給者","ヒト","職員1.44人\n（うち正規1.44人）",13,{"$f":"SUM(H42:H45)","v":420},"バリアフリー経路における電線共同溝整備延長\nL=13.4km(整備済)/32.0km(計画)（整備率41.9％）（平成28年度末）\n\n","千葉市バリアフリー基本構想に定められた生活関連経路の整備を優先的に進め、千葉都心部や駅周辺の一部など約4割の整備が完了しているが、多額な事業費を要すること、また、占用予定者や沿道住民等との調整に時間を要することが課題となっている。\n引き続き事業の推進を図るため、より一層の財源の確保（国費）と経費の節減に努めていく必要がある。","② 課題抑制","最新の工法や材料を取り入れることなどにより、更なる建設コストの低減を図る。","土木保全課"]
[null,null,null,null,null,"モノ","なし",null,"＜参考＞\n前年度決算額"]
[null,null,null,"他都市等の状況",null,"カネ","歳出予算額　407百万円\n（うち一般財源  3百万円）\n【主なもの】\n委託費　      157百万円\n工事請負費　250百万円",407,"歳出決算額　383百万円\n（うち一般財源　0百万円）\n\n平成29年度への繰越分　275百万円"]
[]
[]
[]
["施策",null,null,"4-1-1",{"$f":"IF(D48=\"\",\"←施策番号を選択してください。\",VLOOKUP(D48,W$204:X$1139,2,1))","v":"防災対策の推進"},null,null,"下水道事業会計"]
["No.","新規","事務事業（業務）名","事務事業（業務）概要",null,"現状分析",null,null,null,"課題抽出",null,"今後の方向性",null,"所管課"]
[null,null,null,"目標（目的）","主な内容","事務事業（業務）に\n必要な行政資源",null,"コスト換算\n（単位：百万円）","行政コストの合計額\n（単位：百万円）","主な実績・効果","分析・評価","改善・改革の\n手法","今後の方向性"]
[null,null,null,"【（事務事業（業務）を行い）誰（何）が、どのような状態になることを目指すのか】","【サービス等の提供内容や提供先】",null,null,null,null,"【利用者数・件数等】","【現在どのような状態で、どのような課題があるのか】"]
["1",null,"下水道施設の耐震化\n（管渠、処理場・ポンプ場）","・管渠及び処理場・ポンプ場の耐震化を図ることにより、地震発生時の下水道の流下機能や処理機能を確保する。\n・千葉市下水道総合地震対策計画（H29～H33）に基づき、平成33年度までに、下水道管渠耐震化率を62.2％にする。\n・避難所にマンホールトイレを設置し、大規模地震の発生に備える。","（提供内容）\n主要な下水道管渠739km及び浄化センター・ポンプ場施設の耐震化、小学校などの避難所へマンホールトイレの設置\n・管渠の耐震化9.3km\n・南部浄化センターにおける沈砂池棟など揚水・沈殿施設の耐震化\n・マンホールトイレの設置3箇所\n\n（提供先）\n公共下水道及び道路、避難所の利用者","ヒト","職員16.00人\n（正規16.00人）",135,{"$f":"SUM(H52:H55)","v":3225},"・下水道管渠耐震化率の推移\n　平成26年度末 42.1%(311km)\n　平成27年度末 45.5%(336km)\n　平成28年度末 47.4%(350km)\n\n・南部浄化センター施設の耐震化：継続中\n ポンプ場施設の耐震化：5箇所\n\n下水道施設の耐震化を計画的に進めることにより、地震発生時においても、下水道の流下機能や処理機能を確保することができる。\nまた、地域防災計画で避難所に位置付けられている非常用井戸を有する全ての小学校において、マンホールトイレ55箇所の設置が完了し、災害時における衛生的なトイレ環境が整備された。","「千葉市下水道総合地震対策計画（H29～H33）」に基づき、主要な管渠及び処理場・ポンプ場の耐震化を図っており、耐震化率は確実に向上している。\n今後も引続き、地震対策事業を推進する必要があるが、マンホールトイレについては、災害時のトイレ対策として極めて有効な施設であることが熊本地震において、実証されたところであり、国においても支援策の強化を図るなど、積極的に整備を推進することが求められている。\nまた、引き続き事業の推進を図るため、より一層の財源確保（国費）と経費の節減に努めていく必要がある。","② 課題抑制","地域防災計画と整合を図り、避難所に位置付けられた小学校等を対象に、プールの水を水源としたマンホールトイレの設置を進める。","下水道計画課"]
[null,null,null,null,null,"モノ","なし",0,"＜参考＞\n前年度決算額",null,null,"② 課題抑制","最新の工法や材料を取り入れることなどにより、更なる建設コストの低減を図る。"]
[null,null,null,"他都市等の状況",null,"カネ","歳出予算額\n3,090百万円\n【主なもの】\n管渠耐震化等工事\n請負費　2,819百万円\n処理場耐震化工事\n請負費　250百万円",3090,"歳出決算額　3,590百万円"]
[null,null,null,"重要な幹線等の耐震化率（全国）：46%\n（平成26年度末）"]
["2",null,"雨水対策","・雨水管渠や雨水浸透施設を整備することにより、台風や局地的な大雨などから市民の生命や財産を守る。\n・平成32年度までに、過去に浸水被害が発生した40地区について被害の軽減を図る。\n・地域住民による自助的な雨水対策を推進することにより、浸水被害の軽減を図る。","（提供内容）\n・雨水管渠等の整備\n・雨水浸透施設（浸透桝、浸透トレンチ等）の整備\n・防水板設置や一体として行う関連工事に係る経費の1/2を助成する。（上限75万円）\n\n（提供先）\n・浸水被害の発生した地域の住民及び利用者","ヒト","職員16.05人\n（正規16.05人）",135,{"$f":"SUM(H56:H59)","v":1414},"・雨水整備箇所の推移\n　平成26年度末　16地区完了\n　平成27年度末　18地区完了\n　平成28年度末　19地区完了\n\n・防水板設置工事助成\n（H23創設）\n　累計件数：26件\n　助成額：11百万円\n\n多大な費用と時間を費やす大規模な対策施設ではなく、最小限の費用で早期に効果が得られるよう公園・学校などの公共用地に貯留施設や貯留浸透施設の設置を行うなど対策施設の分散化や段階的整備、防水板設置助成制度の促進など、効率的に事業を進めることにより、過去に浸水被害が発生した箇所において、被害軽減が確実に図られている。","過去に浸水被害が発生している地区について整備を進めており、浸水被害の軽減を図っているが、近年の局地的な大雨等の影響により、一度整備が完了した地区においても、再び浸水被害が発生しているため、雨水対策を強化する必要がある。\nまた、引き続き事業の推進を図るため、より一層の財源確保（国費）と経費の節減に努めていく必要がある。","② 課題抑制","近年の降雨特性を検証し、浸水リスクや都市機能の集積度が高い13地区について、整備水準を引き上げ整備を進めていく。","下水道計画課"]
[null,null,null,null,null,"モノ","なし",0,"＜参考＞\n前年度決算額",null,null,"② 課題抑制","最新の工法や材料を取り入れることなどにより、更なる建設コストの低減を図る。"]
[null,null,null,"他都市等の状況",null,"カネ","歳出予算額\n1,279百万円\n【主なもの】\n排水施設建設等工事\n請負費\n1,206百万円",1279]
[null,null,null,"防水板等の設置助成制度がある政令都市：東京都（4区）、新潟市、（その他一般市：13市）"]
[]
[]
["施策",null,null,"4-1-4",{"$f":"IF(D62=\"\",\"←施策番号を選択してください。\",VLOOKUP(D62,W$204:X$1139,2,1))","v":"交通安全の推進"},null,null,"一般会計"]
["No.","新規","事務事業（業務）名","事務事業（業務）概要",null,"現状分析",null,null,null,"課題抽出",null,"今後の方向性",null,"所管課"]
[null,null,null,"目標（目的）","主な内容","事務事業（業務）に\n必要な行政資源",null,"コスト換算\n（単位：百万円）","行政コストの合計額\n（単位：百万円）","主な実績・効果","分析・評価","改善・改革の\n手法","今後の方向性"]
[null,null,null,"【（事務事業（業務）を行い）誰（何）が、どのような状態になることを目指すのか】","【サービス等の提供内容や提供先】",null,null,null,null,"【利用者数・件数等】","【現在どのような状態で、どのような課題があるのか】"]
["1",null,"交通安全施設等整備","・市内の交通事故の減少が図られる。\n・道路の利用者が安全に歩道を通行できる。","（提供内容）\n・歩道の整備\n・交差点の改良\n・歩道の改良\n・交通安全施設の充実\n・通学路の安全対策\n\n（提供先）\n道路の利用者","ヒト","職員18.11人\n（うち正規18.11人）",{"$f":"114+51","v":165},{"$f":"SUM(H66:H69)","v":2041},"・事故発生状況（H26⇒H28)\n件数：3,125件⇒2,959件\n死者数：22人⇒24人\n負傷者数：3,841人⇒3,595人\n\n・歩道設置（平成２８年度）\n　Ｌ=0.5km（供用）\n\n・交差点の改良（平成２８年度）\n　N=１箇所（完了）\n\n・歩道段差解消\n全体計画1,357箇所のうち延べ1,163箇所実施\n\n・視覚障害者誘導用ブロック\n全体計画85.8kmのうち延べ68.9km実施\n\n・通学路の合同点検\n全112校のうち\n2順目の112校実施\n","\n用地買収を伴う歩道の整備等は、整備までに時間を要することから、今後も短期的対策（路肩のカラー化等）と組み合わせ効率的に事業を実施するため、整備手法のフローを明確化した。\n交差点の改良については、短期的に安全性の向上、渋滞の緩和が図られ有効性が高いことから、早期完了を目指し推進している。\n歩道の改良については、道路特定事業計画に基づき、生活関連経路のバリアフリー整備を進めるなか、進捗に遅れが生じているが、計画期間内に整備を完了する必要がある。\nまた、オリンピック・パラリンピックの競技会場へのアクセスルート及び周辺道路のバリアフリー整備を進めているが、大会開催までの短期間のなかで、整備を完了する必要がある。\n交通安全施設の充実については、道路パトロールや市民からの要望を受け、交通事故防止対策を実施し、交通事故の発生件数は減少傾向にあるものの年間3,000件近くあり、依然として、必要性は高い。\n通学路の安全対策については、「千葉市通学路交通安全プログラム」に基づき、学校・警察・地域住民等と合同点検を実施し、安全対策を実施するとともに、「千葉市通学路のカラー化計画」に基づき、通学路の路肩のカラー化を計画どおりに進めていく。\n\n引き続き事業の推進を図るため、より一層の財源の確保（国費）と経費の節減に努めていく必要がある。","② 課題抑制","最新の工法や材料を取り入れることなどにより、更なる建設コストの低減を図る。","土木保全課\n\n道路計画課\n"]
[null,null,null,null,null,"モノ","－","－","＜参考＞\n前年度決算額"]
[null,null,null,"他都市等の状況",null,"カネ","歳出予算額1,876百万円\n（うち一般財源62百万円）\n【主なもの】\n委託料224百万円\n工事請負費488百万円\n公有財産購入費\n410百万円\n補償費750百万円",1876,"歳出決算額665百万円（うち一般財源61百万円）"]
[]
["2",null,"自転車走行環境整備","　自転車利用者及び歩行者が安全に通行できる。","（提供内容）\n自転車走行環境整備計画である「ちばチャリ・すいすいプラン」に基づき、整備を行う。\n併せて、自転車走行ルール等について、整備区間周辺の自治会・学校等への啓発を行う。\n\n（提供先）\n自転車利用者及び歩行者","ヒト","職員2.00人\n（正規2.00人）",18,{"$f":"SUM(H70:H72)","v":92},"・自転車レーン等\n　累計整備延長\n　　28.6km/75.7km\n（平成28年度末）","自転車レーン等については、着実に整備を進めているが、国土交通省及び警察庁の「安全で快適な自転車利用環境創出ガイドライン」の改訂に伴ない、自転車レーンの設置に伴う路肩の舗装部分の幅員が1.0mから1.5mになり、車道混在型においても、舗装部分の幅員で1.0m以上の確保が望まれることとなったため、現計画における整備形態について見直しを行い整備する必要が生じた。\nまた、整備前に周辺の自治会や学校へ自転車走行ルールの周知を行ない、整備において「車道通行」、「左側通行」の通行方法の啓発看板を設置している。","② 課題抑制","自転車レーンの整備において、レーンの両側に帯状の表示をしていたが、車道側のみの片側表示に変更することでコストの低減を図る。","自転車対策課"]
[null,null,null,null,null,"モノ","-","-","＜参考＞\n前年度決算額"]
[null,null,null,"他都市等の状況",null,"カネ","歳出予算額74百万円\n（うち一般財源2百万円）\n【主なもの】\nおゆみ野東南部5号線など\n工事請負費70百万円",74,"歳出決算額205百万円\n（うち一般財源4百万円）\n平成29年度への\n繰越分56百万円"]
[]
["3",null,"放置自転車対策","歩行者等の多い駅周辺の移動保管等の放置自転車対策及び自転車駐車場の整備に加えて、安心して利用できるように管理することで、放置自転車を減らし、歩行者等が安心して通行できる。","（提供内容）\n・電磁ロック式ラック等の設備整備や自転車駐車場の新設・改築\n・路上巡回、放置自転車追放指導や移動保管等の放置自転車対策\n・自転車駐車場利用受付\n・料金徴収・収納・還付処理\n・自転車駐車場設備点検・維持修繕等\n（提供先）\n自転車利用者及び歩行者","ヒト","職員13.60人\n（正規8.0人、臨時5.60人）",47,{"$f":"SUM(H74:H76)","v":936},"自転車駐車場の収容台数\n平成17年6月：58,475台\n　　　　　　　↓\n平成28年11月：63,218台\n\n\n駅周辺の放置自転車台数\n平成17年6月：15,143台\n　　　　　　　↓\n平成28年11月：1,205台\n（ピーク時の8%）","駅周辺において147箇所の自転車駐車場を整備し、放置自転車の追放指導や移動・保管の継続的な実施によって、放置自転車は約1,200台となっている。\n但し、大型店舗等の周辺において、短時間の放置自転車が発生しており、歩行者等の通行を阻害している箇所があり課題がある。\nさらに、近年は24時間利用できるラックの整備など、利用者からのニーズが多様化していることも課題である。\n加えて、自転車駐車場の4割が20年以上経過し、老朽化が進んでおり、ラック等設備にも不具合が発生していることから、今後、計画的に施設の更新をする必要がある。\nまた、納付書払いを実施したことにより、駐車場利用者の負担が軽減された。\n","② 課題抑制","引き続き、放置自転車の削減を目指し、巡回・指導等を実施するほか、道路占用等による民間自転車駐車場の設置を促進するなど、効果的な放置自転車対策を行う。","自転車対策課"]
[null,null,null,null,null,"モノ","自転車保管場7箇所\n自転車駐車場147箇所",24,"＜参考＞\n前年度決算額",null,null,"③ 整理統合","24時間利用できる電磁ロック式ラック等の機械精算方式の導入によって利用者の利便性を高めるとともに、管理棟を統廃合し、管理運営費の縮減を図る。"]
[null,null,null,"他都市等の状況",null,"カネ","歳出予算額880百万円\n（うち一般財源22百万円）\n【主なもの】\n自転車駐車場管理業務委託：129百万円",865,"歳出決算額707百万円\n（うち一般財源69百万円）\n平成29年度への\n繰越分142百万円\n",null,null,"② 課題抑制","自転車駐車場の適正な管理運営により、市民サービス向上を図るとともに、老朽化した施設の更新を計画的に進めることにより、維持管理コストの平準化を図る。"]
[null,null,null,"放置自転車数に関する内閣府調査によると、政令市の中で、千葉市は20市中第3位（順位は放置自転車数の少ない順）※H27年度調査結果。また、大阪市において、平成29年2月に自転車駐車場維持管理計画を策定。"]
[]
[]
["施策",null,null,"4-2-5",{"$f":"IF(D80=\"\",\"←施策番号を選択してください。\",VLOOKUP(D80,W$204:X$1139,2,1))","v":"生活基盤の充実"},null,null,"一般会計"]
["No.","新規","事務事業（業務）名","事務事業（業務）概要",null,"現状分析",null,null,null,"課題抽出",null,"今後の方向性",null,"所管課"]
[null,null,null,"目標（目的）","主な内容","事務事業（業務）に\n必要な行政資源",null,"コスト換算\n（単位：百万円）","行政コストの合計額\n（単位：百万円）","主な実績・効果","分析・評価","改善・改革の\n手法","今後の方向性"]
[null,null,null,"【（事務事業（業務）を行い）誰（何）が、どのような状態になることを目指すのか】","【サービス等の提供内容や提供先】",null,null,null,null,"【利用者数・件数等】","【現在どのような状態で、どのような課題があるのか】"]
["1",null,"道路維持","安全で快適な道路環境を維持するため、補修や清掃、点検を行うことにより、道路の利用者が安全に道路を通行できる。","（提供内容）\n道路補修、道路清掃、\n道路施設の定期点検\n\n（提供先）\n道路の利用者","ヒト","職員72.49人\n（うち正規67.89人、非常勤4.60人）",541,{"$f":"SUM(H84:H87)","v":2784},"・要望対応件数\n11,543件\n（平成28年度実績）\n・パトロールによる対応件数\n3,130件\n（平成28年度実績）\n・舗装点検\n全体計画約380km\nのうち104km実施\n（平成28年度末）\n・道路照明灯点検\n一巡目完了\n二巡目1,594基実施。\n\n※舗装（幹線道路）と道路照明灯は5年間ですべて点検するように実施している。","【現在の状況】\n舗装などの点検を行い予防保全を行うことで事業費の平準化とコスト縮減も図られている。\n今後も適切に効率的な維持管理を行い、道路の利用者が安全に通行できるよう事業を実施する。\n\n【課題】\n管理している道路施設が膨大にあり、開発行為等の帰属により、新たに管理しなければならない道路施設は増加する一方である。\nまた、道路施設の老朽化が進んでいることから、維持管理費の増加が課題となっている。\n引き続き事業の推進を図るため、より一層の財源確保（国費）と経費の節減に努めていく必要がある。","② 課題抑制","千葉市道路舗装維持管理計画などの個別施設計画を順次策定し、予防保全型の管理に転換することで、コスト低減を図る。","土木管理課\n\n\n土木保全課"]
[null,null,null,null,null,"モノ","国道　　  7.1km\n県道　108.4km\n市道3,195.0km","―","＜参考＞\n前年度決算額",null,null,"② 課題抑制","最新の工法や材料を取り入れることなどにより、更なる建設コストの低減を図る。"]
[null,null,null,"他都市等の状況",null,"カネ","歳出予算額\n            2,250百万円\n（うち一般財源\n           2,189百万円）\n【主なもの】\n委託料1,300百万円\n光熱水費256百万円",2243,"歳出決算額\n           2,330百万円\n（うち一般財源\n          2,279百万円）\n\n"]
[]
["2",null,"道路新設改良","生活環境の向上を図り、道路の利用者が安全に道路を通行できる。","（提供内容）\n舗装の新設・改良、\n側溝の新設・改良\n\n（提供先）\n道路の利用者","ヒト","職員16.55人\n（うち正規16.55人）",144,{"$f":"SUM(H88:H91)","v":3176},"舗装の新設　1.0km\n舗装の改良　15.4km\n側溝の新設　1.1km\n側溝の改良　6.5km\n（平成28年度実績）","幹線道路の舗装改良を計画的に実施するほか、大規模団地の側溝改良を計画的に実施するとともに、その他の道路新設改良は、パトロールや要望に基づき事業を実施している。\n舗装率が高水準であることなどから、舗装や側溝の新設は減少しているものの、施設の老朽化が進んでおり、改良に係る事業費が増大している。\n引き続き事業の推進を図るため、より一層の財源確保（国費）と経費の節減に努めていく必要がある。","② 課題抑制","千葉市道路舗装維持管理計画に基づき予防保全型の管理に転換することで、コスト低減を図る。","土木保全課"]
[null,null,null,null,null,"モノ","―","―","＜参考＞\n前年度決算額",null,null,"② 課題抑制","最新の工法や材料を取り入れることなどにより、更なる建設コストの低減を図る。"]
[null,null,null,"他都市等の状況",null,"カネ","歳出予算額\n          3,032百万円\n（うち一般財源20百万円）\n【主なもの】\n工事請負費\n          1,400百万円\n公有財産購入費\n            697百万円",3032,"歳出決算額\n        3,266百万円\n（うち一般財源\n           310百万円）"]
[]
["3",null,"橋りょう維持","道路・モノレールの利用者が安全に利用できる。","（提供内容）\n橋梁定期点検・補修、\nモノレールインフラ施設の定期点検・塗り替え塗装及び更新改良\n\n（提供先）\n道路・モノレールの利用者","ヒト","職員7.9人\n（うち正規7.9人）",69,{"$f":"SUM(H92:H95)","v":2834},"・橋梁補修\n全体539橋のうち153橋実施\n（平成28年度末）\n・モノレール塗り替え塗装\n全体15.4kmのうち10.3km実施\n（平成28年度末）\n・橋梁点検\n1巡目完了\n2巡目全体539橋のうち92橋点検を実施（平成28年度末）\n・モノレールインフラ施設点検\n全体15.4kmの1順目の点検が完了（平成28年度末）\n\n※橋梁及びモノレールインフラ施設は5年間ですべて点検するように実施している。","千葉市橋梁長寿命化修繕計画等に基づき、概ね計画通り橋梁の補修や点検を実施している。\n鉄道や高速道路を跨ぐ橋梁の事業実施に際しては、ＪＲ、ＮＥＸＣＯ等の他事業者との協議に時間を要し、スケジュールどおり進まないことが課題となっている。\n引き続き事業の推進を図るため、より一層の財源確保（国費）と経費の節減に努めていく必要がある。","② 課題抑制","ＰＤＣＡサイクルに基づき、長寿命化修繕計画を更新する。","土木保全課"]
[null,null,null,null,null,"モノ","―","―","＜参考＞\n前年度決算額",null,null,"① 調達改革","橋梁補修と耐震補強の一体施工による仮設費用の縮減を行いコスト低減を図る。"]
[null,null,null,"他都市等の状況",null,"カネ","歳出予算額\n            2,765百万円\n（うち一般財源\n             　 96百万円）\n【主なもの】\n委託料1,655百万円\n工事請負費1,022百万円",2765,"歳出決算額\n        1,254百万円\n（うち一般財源\n            93百万円）\n\n平成29年度への繰越分\n　　　　 676百万円",null,null,"② 課題抑制","最新の工法や材料を取り入れることなどにより、更なる建設コストの低減を図る。"]
[]
["4",null,"排水施設維持管理","雨水管等（公共下水道を除く）の適切な維持管理を行うことにより、快適で安心した生活環境を市民に提供することが出来る。","（提供内容）\n雨水管等（公共下水道を除く）の不具合箇所の補修や用地内の草刈業務等\n\n（提供先）\n周辺住民\n道路利用者","ヒト","職員6.2人\n（正規3.2人、非常勤3.0人）",38,{"$f":"SUM(H96:H99)","v":215},"不具合等の対応要望件数\n　H17 ： 120件\n　H22 ：   97件　(H21 ： 134件)\n　H28 ： 178件\n※年々、施設の不具合等に関する市民からの要望件数が増加傾向にある。","施設の老朽化に伴い、年々、下水道施設の不具合等が増加する中で、快適で安心な市民生活を提供し続けるためには、維持管理事業を「予防保全型」へ移行していく必要がある。それにより、今後の事業費の平準化を図ることが可能となり、安定した事業の運営に繋がる。","② 課題抑制","維持管理計画を策定し、予防保全型の計画的な維持管理を実施していく。","下水道維持課"]
[null,null,null,null,null,"モノ","【主なもの】(H28)\n一般排水路　L=486km\n都市下水路　L= 20km\n調整池　88箇所　他",null,"＜参考＞\n前年度決算額"]
[null,null,null,"他都市等の状況",null,"カネ","歳出予算額177百万円\n（うち一般財源136百万円）\n【主なもの】\n清掃・補修等費用（土木事務所単価契約）：67百万円\n草刈業務委託：23百万円\n工事請負費：48百万円",177,"歳出決算額　150百万円\n（うち一般財源125百万円）"]
[null,null,null,"－"]
["5",null,"生活道路整備","すれ違い困難箇所の解消のため、道路の拡幅や待避所の整備を行うことにより、生活を支える道路を安心して使うことができる。","（提供内容）\n生活道路の整備\n・道路の拡幅\n・待避所の設置\n\n（提供先）\n道路の利用者","ヒト","職員5.58人\n（正規5.58人）",44,{"$f":"SUM(H100:H103)","v":313},"要望件数  \n・平成26年度　14件\n・平成27年度　 6件\n・平成28年度　 3件\n\n整備状況（平成２８年度）\n・拡幅整備　　 L=660ｍ\n・待避所設置   N=2か所\n　　　　　　　　 \n","拡幅整備要望が多数寄せられている。\n用地買収を伴う道路の拡幅は、事業費が高額で供用までに時間を要している。\nこのことから。短期間にすれ違い困難箇所の解消ができ、安全性や利便性が向上する、用地買収が少ない線形の改良や待避所の設置などの部分的拡幅を推進するため、整備手法の選定フローを明確化した。\n引き続き事業の推進を図るため、より一層の経費の削減に努めていく必要がある。","② 課題抑制","最新の工法や材料を取り入れることなどにより、さらなる建設コストの低減を図る。","道路計画課"]
[null,null,null,null,null,"モノ","－","－","＜参考＞\n前年度決算額"]
[null,null,null,"他都市等の状況",null,"カネ","歳出予算額269百万円\n（うち一般財源10百万円）\n【主なもの】\n委託料　28百万円\n工事請負費　131百万円\n公有財産購入費　69百万円\n補償費　39百万円",269,"歳出決算額152百万円\n（うち一般財源11百万円）"]
[null,null,null,"－"]
["6",null,"道路管理事務","　道路利用の秩序を維持し、道路を適正な状態に保持することで、様々な社会活動を支えており、地域住民へ安全・安心な生活環境を提供する。","（提供内容）\n道路占用許可、道路工事施行承認、道路境界査定、道路用地の寄付、放置自動車の措置、道路施設損傷事故への対応、管理瑕疵への対応等\n\n（提供先）\n道路の利用者","ヒト","職員43.14人\n（うち正規40.14人、非常勤3.00人）",339,{"$f":"SUM(H104:H107)","v":379},"（平成28年度実績）\n・道路占用等許可\n　許可件数：7,070件\n　収入金額：746百万円\n・道路工事施行承認\n　承認件数：634件\n","公共性の高い道路を管理する上で、道路利用者の秩序を維持し、道路を適正な状態に保持することは、必要な事務であり、有効性は高く、今後も、効率化を図り、道路管理事務を引き続き実施していく。",null,null,"土木管理課"]
[null,null,null,null,null,"モノ","国道　　  7.1km\n県道　108.4km\n市道3,195.0km",null,"＜参考＞\n前年度決算額"]
[null,null,null,"他都市等の状況",null,"カネ","歳出予算額45百万円\n（うち一般財源40百万円）\n【主なもの】\n委託料12百万円\n\n歳入予算額745百万円\n【主なもの】\n道路占用料",40,"歳出決算額33百万円（うち一般財源32百万円）"]
[]
[]
[]
["施策",null,null,"4-2-5",{"$f":"IF(D110=\"\",\"←施策番号を選択してください。\",VLOOKUP(D110,W$204:X$1139,2,1))","v":"生活基盤の充実"},null,null,"下水道事業会計"]
["No.","新規","事務事業（業務）名","事務事業（業務）概要",null,"現状分析",null,null,null,"課題抽出",null,"今後の方向性",null,"所管課"]
[null,null,null,"目標（目的）","主な内容","事務事業（業務）に\n必要な行政資源",null,"コスト換算\n（単位：百万円）","行政コストの合計額\n（単位：百万円）","主な実績・効果","分析・評価","改善・改革の\n手法","今後の方向性"]
[null,null,null,"【（事務事業（業務）を行い）誰（何）が、どのような状態になることを目指すのか】","【サービス等の提供内容や提供先】",null,null,null,null,"【利用者数・件数等】","【現在どのような状態で、どのような課題があるのか】"]
["1",null,"老朽化下水道施設の\n改築\n（管渠、処理場・ポンプ場","・老朽化した下水道管渠の改築を行い、道路陥没や下水道の流下阻害を防止することにより、市民が安全に道路を使うことができるとともに、下水道の機能を確保する。\n・老朽化した処理場・ポンプ場設備の改築を行い、機能停止による事故を未然に防止することにより、安定的な下水道サービスを市民に提供する。","（提供内容）\n老朽化した下水道管渠175km及び浄化センター・ポンプ場設備の改築\n・管渠の改築8.1km\n・南部浄化センター及び黒砂ポンプ場外設備の改築\n・マンホール蓋の交換140個\n\n（提供先）\n公共下水道及び道路の利用者","ヒト","職員16.0人\n（正規15.6人、非常勤0.4人）",131,{"$f":"SUM(H114:H117)","v":4946},"・下水道管渠改築率の推移\n　平成26年度末 18.6%(32.5km)\n　平成27年度末 20.6%(36.0km)\n　平成28年度末 24.4%(42.6km)\n\n・処理場設備の改築：2箇所\n ポンプ場設備の改築：16箇所\n\n老朽化した下水道管渠や処理場・ポンプ場設備の改築を計画的に進めることにより、道路陥没や下水道の流下阻害、機能停止による事故を未然に防止でき、安定的な下水道サービスを市民に提供することができる。","カメラ調査結果や機器の機能診断に基づき、施設の健全度を適正に評価・把握し、効率的な改築を実施しており、下水道の機能確保が図られている。\n今後は、下水道施設全体を維持から改築まで一体的に管理する「下水道ストックマネジメント計画（H30～H34）」を策定し、この計画に基づき事業を進める。\n現在、中央浄化センターにおいて、既存3系列中1系列を再構築中であるが、中央処理区の4ポンプ場についても、供用開始後48年が経過し、施設の老朽化が進み、再構築が必要となっている。\nまた、引き続き事業の推進を図るため、より一層の財源確保（国費）と経費の節減に努めていく必要がある。","② 課題抑制","中央処理区の4ポンプ場を1ポンプ場に統合する計画であるが、平成28年に「千葉市下水道全体計画」が見直されたことから、将来汚水量に基づく施設規模の検証を行い、ダウンサイジングを踏まえた整備計画を策定し、更なるコスト縮減を図る。","下水道計画課"]
[null,null,null,null,null,"モノ","なし",0,"＜参考＞\n前年度決算額",null,null,"② 課題抑制","最新の工法や材料を取り入れることなどにより、更なる建設コストの低減を図る。また、設備については省エネ機器の導入や機能向上等を踏まえながら効率的に改築を行う。"]
[null,null,null,"他都市等の状況",null,"カネ","歳出予算額\n4,815百万円\n【主なもの】\n管渠改良工事請負費\n485百万円\n焼却炉等改築工事請負費 1,971百万円\nマンホール蓋更新等工事\n請負費 74百万円",4815,"歳出決算額　3,963百万円"]
[]
["2",null,"中央・南部浄化センター等包括的維持管理","民間事業者に包括的民間委託できる範囲内において、施設等の維持管理を委託することにより、公共用水域の水質を保全し、市民の健康でかつ快適な生活環境を保持する。","（提供内容）\n中央・南部浄化センター及び所管ポンプ場等運転管理、保守点検、補修、及び清掃等\n※市職員が行わなければならない履行の確認等の業務を除く　　　　　　　　　\n\n（提供先）\n下水道利用者\n海辺等の利用者","ヒト","中央浄化センター\n職員2.6人\n正規1.9人、再任0.7人\n南部浄化センター\n職員3.4人\n正規3.2人、再任0.2人　　 　　   計  　   6.0人",48,{"$f":"SUM(H118:H121)","v":7624},"全処理区　※H29.3現在\n（印旛、中央、南部）\n利用者数：934,796人\n接続世帯数：431,785\n処理水量：78,059,321㎥\n\n※印旛処理区は、終末処理場以外の中継ポンプ場等の維持管理を包括で担う。\n","包括的民間委託は\n第1期　H20～H22\n第２期　H23～H25\n第３期　H26～H30\nまでの期間で契約しており、第3期においては契約期間を5年にすることによりコスト縮減を図っている。                                また、契約水質基準を確実に達成するための自主管理基準を設定し、適正に公共用水域の水質保全を図り、市民の健康でかつ快適な生活環境を保持している。\n　\n　","⑧ その他","将来にわたり包括的民間委託の履行監視を適正に行う能力を維持するために、他団体が実施する研修や下水道維持管理経験退職者の活用を推進する。\nまた、ストックマネジメント計画による点検・調査により、早期のリスク発見及び対応を行い処理場・ポンプ場機能の安定を図る。","中央浄化センター\n\n南部浄化センター"]
[null,null,null,null,null,"モノ","【主なもの】\n下水処理場　　2施設\nポンプ場等　189施設",4958,"＜参考＞\n前年度決算額"]
[null,null,null,"他都市等の状況",null,"カネ","歳出予算額\n中央浄化センター\n　　　　　　　 690百万円\n南部浄化センター\n　　　　　　 1,928百万円\n\n　　　　 計2,618 百万円\n\n【全体H26～H30年度】\n　歳出予算額\n　　　　 12,161百万円",2618,"\n歳出決算額\n中央浄化センター\n　　　　　　　635百万円\n南部浄化センター\n　　　　　　1,622百万円\n\n　　　　　計2,257百万円"]
[null,null,null,"処理場・ポンプ場等の包括的維持管理委託を導入している政令市：9市"]
["3",null,"中央・南部浄化センター維持管理","包括的民間委託に含まない計画修繕や汚泥焼却灰の処分について、修繕計画の立案・施行や産業廃棄物として、法令に基づき適正に埋立処分することで、市民に良好な生活環境を提供する。","(提供内容)\n中央・南部浄化センター所管施設の機能保全を目的とした計画的修繕の立案、施行及び下水から発生する汚泥焼却灰の処分\n\n（提供先）\n下水道利用者\n海辺等の利用者　　　　　　　　　　　　　　","ヒト","【計画修繕】\n中央浄化センター\n職員 2.3人\n正規1.5人、再任0.8人 \n南部浄化センター\n職員 2.8人　　　　　　\n正規2.8人、再任0人\n【焼却灰】\n南部浄化センター\n正規0.4人、再任0人\n　　　　　　　　計　5.5人",42,{"$f":"SUM(H122:H125)","v":737},"平成28年度実績\n【計画修繕】\n中央浄化センター　　25件\n南部浄化センター　　26件 \n　　　　　　　      計51件\n                 　　　　　　　\n金額     　440百万円\n       　　  \n【焼却灰】\n南部浄化センター\n焼却灰発生量　1,687t\n金額　　　　 44百万円\n　　　　　","施設機能を維持し、安定的に下水を処理するために予防保全などの観点から計画的な修繕執行を行って良好な生活環境を保持している。\n今後も継続して下水処理の水準を保つには、修繕の立案、施行に関する技術の継承が重要である。\nまた、汚泥焼却灰については、職員により法令に基づいた適正な処分を確認している。\n\n","⑧ その他","包括的民間委託に含まない、市が行うべき計画修繕等の業務を効果的、かつ、確実に実施する能力を維持するために、他団体が実施する研修や下水道維持管理経験退職者の活用を推進する。\nストックマネジメント計画で設定した修繕の実施計画に基づき、効率的かつ効果的な運用を図る。","中央浄化センター\n\n南部浄化センター"]
[null,null,null,null,null,"モノ","【計画修繕】\n中央浄化センター　　20件\n南部浄化センター　　32件 \n　　　　　　　     計 52件\n　　　　　\n【焼却灰】\n焼却灰2,300t/年","-","＜参考＞\n前年度決算額"]
[null,null,null,"他都市等の状況",null,"カネ","歳出予算額\n【計画修繕】\n中央浄化センター \n                133百万円\n南部浄化センター 　\n　　　　　　　463百万円\n　　　 \n　　　　　計  596百万円\n\n【焼却灰】\n南部浄化センター\n　　　　　　　  99百万円",695,"歳出決算額\n【計画修繕】\n中央浄化センター\n　　　　　　　117百万円\n南部浄化センター\n　　　　　　　323百万円\n\n　　　　 計　440百万円\n\n【焼却灰】\n南部浄化センター\n　　　　　　　44百万円"]
[null,null,null,"【計画修繕】\n計画修繕を実施している自治体：千葉県・東京都・横浜市・川崎市他多数　　　　　　　　\n"]
["4",null,"下水道施設維持管理","管渠や調整池等の公共下水道施設の適切な維持管理を行うことにより、安定的な下水道サービスを市民に提供することができる。","(提供内容)\n管渠や調整池等の公共下水道施設の不具合箇所の補修や用地内の草刈業務等\n\n（提供先）\n下水道利用者\n周辺住民\n道路利用者","ヒト","職員8.5人\n（正規5.2人、非常勤3.3人）",57,{"$f":"SUM(H126:H129)","v":504},"不具合等の対応要望件数\n　H17 ： 185件\n　H22 ： 200件\n　H28 ： 223件\n※年々、施設の不具合等に関する市民からの要望件数が増加傾向にある。\n\n\n\n管路施設の点検調査実績(H28)\n　・巡視点検　L=78km\n　・簡易調査　L=29km","施設の老朽化に伴い、年々、下水道施設の不具合等が増加する中で、快適で安心な市民生活を提供し続けるためには、維持管理事業を「予防保全型」へ移行していく必要がある。それにより今後の事業費の平準化を図ることが可能となり、安定した事業の運営に繋がる。\n","② 課題抑制","維持管理計画を策定し、予防保全型の計画的な維持管理を実施していく。","下水道維持課"]
[null,null,null,null,null,"モノ","【主なもの】（H28)\n下水道管渠L=3,700km\nマンホール　118,120個\n調整池　15箇所　等",null,"＜参考＞\n前年度決算額"]
[null,null,null,"他都市等の状況",null,"カネ","歳出予算額　447百万円\n【主なもの】\n清掃・補修等費用（土木事務所単価契約）：174百万円\n不明水調査：32百万円\n管渠調査委託費：119百万円",447,"歳出決算額　　406百万円"]
[null,null,null,"先進的に取組を実施している都市：仙台市\n内容：ストックマネジメントの他、資産管理の効率的な運用を図るアセットマネジメントの導入を、平成25年度から行っている。"]
["5",null,"汚水管渠の整備","・汚水管渠を整備し、周辺環境の改善やトイレの水洗化を図ることにより、衛生的で快適な市民生活を提供する。\n・汚水処理人口普及率内訳\n公共下水道事業 98.9%、農業集落排水事業 0.5%、合併処理浄化槽設置整備事業 0.6%\n・平成33年度までに、下水道処理人口普及率を97.5%にする。","（提供内容）\n未整備地区における汚水管渠の整備\n・汚水管渠の整備5.5ha\n（うち区画整理2.1ha）\n\n（提供先）\n公共下水道の利用者","ヒト","職員5.85人\n（正規5.85人）",49,{"$f":"SUM(H130:H133)","v":597},"・下水道処理人口普及率の推移\n　平成26年度末　97.2%　\n　平成27年度末　97.3%\n　平成28年度末　97.3%\n\n未整備地区の汚水整備を計画的に進めることにより、地域住民へ衛生的で快適な生活環境を提供することができる。","これまでの整備により、汚水整備はほぼ概成となり、大多数の市民が衛生的で快適な生活が送れるようになったが、依然、私道や低地部等の未整備箇所も点在することから、全市域汚水適正処理構想（H27策定）に基づく全体計画により、費用対効果1以上の箇所を優先的に整備を実施していく。\nまた、今後はこれらの箇所に加え、区画整理事業と一体的な整備を確実に進めていく。\nまた、引き続き事業の推進を図るため、より一層の経費の節減に努めていく必要がある。","② 課題抑制","最新の工法や材料を取り入れることなどにより、更なる建設コストの低減を図る。","下水道計画課"]
[null,null,null,null,null,"モノ","なし",0,"＜参考＞\n前年度決算額"]
[null,null,null,"他都市等の状況",null,"カネ","歳出予算額\n548百万円\n【主なもの】\n排水施設建設工事\n請負費\n324百万円",548,"歳出決算額　379百万円"]
[null,null,null,"下水道処理人口普及率\n・全国平均：77.8%\n・政令都市：97.1%\n・千葉市：97.3%（東京23区を含めた21政令都市中13位）\n（平成27年度末）"]
[]
[]
["施策",null,null,"4-3-2",{"$f":"IF(D136=\"\",\"←施策番号を選択してください。\",VLOOKUP(D136,W$204:X$1139,2,1))","v":"道路ネットワークの形成"},null,null,"一般会計"]
["No.","新規","事務事業（業務）名","事務事業（業務）概要",null,"現状分析",null,null,null,"課題抽出",null,"今後の方向性",null,"所管課"]
[null,null,null,"目標（目的）","主な内容","事務事業（業務）に\n必要な行政資源",null,"コスト換算\n（単位：百万円）","行政コストの合計額\n（単位：百万円）","主な実績・効果","分析・評価","改善・改革の\n手法","今後の方向性"]
[null,null,null,"【（事務事業（業務）を行い）誰（何）が、どのような状態になることを目指すのか】","【サービス等の提供内容や提供先】",null,null,null,null,"【利用者数・件数等】","【現在どのような状態で、どのような課題があるのか】"]
["1",null,"幹線道路整備","・幹線道路を整備し、混雑区間の減少による、移動時間の短縮や輸送費の低下によって、経済活動の生産性を向上させ経済成長を図るとともに道路ネットワーク強化により防災力を向上を図る。また、交通の円滑化により、周辺生活道路の交通量を削減させ利便性・安全性の向上を図る。\n\n・都市計画道路の整備率を平成33年度末までに76.6％にする。","（提供内容）\n・県道の整備\n・主要市道の整備\n・都市計画道路の整備\n\n（提供先）\n道路の利用者","ヒト","職員12.98人\n（正規12.98人）",102,{"$f":"SUM(H140:H143)","v":3188},"平成２８年度供用\n・都市計画道路大膳野町誉田町線\n　L=0.42㎞\n\n都市計画道路の整備率\n　74.8％（平成28年度末）\n\n市内の一般道路の平均混雑度\n　平成22年度　1.01\n　平成27年度　0.96\n(道路交通センサス調査結果)","・十分な財源（国費）の確保ができないことから、事業が長期化している。このため、事業の選択と集中を行い、整備優先度の高い路線への重点的な投資による効率的な道路ネットワーク形成が必要である。\n\n・引き続き事業の推進を図るため、より一層の財源確保（国費）と経費の削減に努めていく必要がある。","② 課題抑制","道路整備による成果目標を定めた「道路整備プログラム」を策定し、選択と集中を図り、効果的に事業効果を発現させる。","道路計画課"]
[null,null,null,null,null,"モノ","－","－","＜参考＞\n前年度決算額",null,null,"② 課題抑制","最新の工法や材料を取り入れることなどにより、さらなる建設コストの低減を図る。"]
[null,null,null,"他都市等の状況",null,"カネ","【歳出予算額】\n3,086百万円\n（うち一般財源91百万円）\n【主なもの】\n委託料　185百万円\n工事請負費　1,071百万円\n公有財産購入費　783百万円\n補償費　1,036百万円\n",3086,"歳出決算額1,433百万円（うち一般財源97百万円）"]
[null,null,null,"・都市計画道路の整備率\n（H28.3.31現在）\nさいたま市　50.6％\n横浜市　　　61.8％\n川崎市　　　70.6％\n相模原市　 75.1％\n"]
["2",null,"道路計画調査","市民が、道路の整備計画や整備後の効果について把握できる。","・交通現況調査\n・道路交通情報管理システム保守管理他","ヒト","職員0.95人\n（正規0.95人）",8,{"$f":"SUM(H144:H147)","v":89},"\n\n道路交通センサス調査\n（幹線道路の一般交通量調査）　\n　平成27年度\n　　交通量調査　　　 43箇所\n　　道路現況調査　　67区間\n\n交通現況調査\n（交差点交通量調査）\n　平成26年度　　6か所\n　平成27年度　35か所\n　平成28年度　23箇所\n　　\n道路交通情報管理システム\n（交通状況（旅行速度等）の把握を行うシステム）\n　取得データ\n　・平成２４年３月\n　　～平成２８年１１月まで\n　　※期間内で取得していない\n　　　 期間もある。\n 　　\n\n\n","・道路交通実態を把握するデータを継続して取得し、整備計画の検討や交通安全対策の立案のほか整備効果の検証ができる状態となっている。また、道路整備計画以外の活用として、イベント時の道路混雑状況を解析した資料を作成し提供している。\n\n・交通現況調査の結果について、平成２８年度からホームページでの公表を行っている。\n",null,null,"道路計画課"]
[null,null,null,null,null,"モノ","－","－","＜参考＞\n前年度決算額"]
[null,null,null,"他都市等の状況",null,"カネ","歳出予算額81百万円\n（うち一般財源81百万円）\n【主なもの】\n委託料80百万円",81,"歳出決算額28百万円（うち一般財源28百万円）"]
[null,null,null,"・道路交通情報管理システム\n（東京、静岡市、浜松市で採用）"]
["3",null,"踏切除却","緊急対策が必要な踏切（開かずの踏切）を除却することで、踏切での事故を無くし、道路利用者・鉄道利用者の安全の確保を図る。","(提供内容）\n市道幕張町２１５号線（花立、第二花立、京成幕張本郷第１号踏切）\n\n（提供先）\n事業延長　L=870m\n(鉄道交差部　L=80m）\n幅員10～20ｍ","ヒト","職員0.90人\n（正規0.90人）",8,{"$f":"SUM(H148:H151)","v":59},"昭和56年度　　 事業着手\n平成10年度～　道路築造工事\n                      に着手\n　　　　　　　　　　取付道路\n　　　　　　　　　　L=530m完了\n平成13年度～　鉄道交差部\n                      工事に着手\n平成14年度　　 仮設踏切に切替\n平成22年度～　事業休止中\n","・鉄道交差部をアンダーパスにて整備する当初計画は、　同種工事の鉄道事故により安全基準の見直しが行われ、事業期間及び整備費が大幅に増大となることが判明したため、事業を休止している。\n\n・休止期間が長期化していること、また仮設踏切にて過去死傷事故（H19以降）が４件発生している等、踏切が除却されていないことが課題となっている。\n\n","② 課題抑制","当初計画のアンダーパスによる整備手法等の再検証を行う。","街路建設課"]
[null,null,null,null,null,"モノ","－","－","＜参考＞\n前年度決算額"]
[null,null,null,"他都市等の状況",null,"カネ","歳出予算額 51百万円\n（うち一般財源 36百万円）\n【主なもの】\n負担金（維持）10百万円\n委託料\n（調査・設計）33百万円\n賃借料　4百万円　　　 　",51,"歳出決算額13百万円（うち一般財源13百万円）"]
[null,null,null,"－"]
[]
[]
["施策",null,null,"4-3-4",{"$f":"IF(D154=\"\",\"←施策番号を選択してください。\",VLOOKUP(D154,W$204:X$1139,2,1))","v":"ＩＣＴを活かした利便性の向上"},null,null,"一般会計"]
["No.","新規","事務事業（業務）名","事務事業（業務）概要",null,"現状分析",null,null,null,"課題抽出",null,"今後の方向性",null,"所管課"]
[null,null,null,"目標（目的）","主な内容","事務事業（業務）に\n必要な行政資源",null,"コスト換算\n（単位：百万円）","行政コストの合計額\n（単位：百万円）","主な実績・効果","分析・評価","改善・改革の\n手法","今後の方向性"]
[null,null,null,"【（事務事業（業務）を行い）誰（何）が、どのような状態になることを目指すのか】","【サービス等の提供内容や提供先】",null,null,null,null,"【利用者数・件数等】","【現在どのような状態で、どのような課題があるのか】"]
["1",null,"道路台帳整備","ICTを活用し、道路台帳など道路に関する情報を公開することで、市民などがその情報を容易に入手し、活用できることで、行政サービスの向上とともに道路管理の効率化を図る。","（提供内容）\n道路台帳等の閲覧及び交付、千葉市公共基準点の利用や道路台帳の一部をホームページ上で公開をする。\n\n（提供先）\n市民及び不動産業、建設業、測量業等の業者","ヒト","職員19.80人\n（正規17.20人、非常勤2.60人）",59,{"$f":"SUM(H158:H161)","v":158},"・千葉市道路網図システムを市ホームページに公開した。\n（平成26年度）\n\n・窓口来庁者数　約1.5万人/年\n・認定道路網図システム閲覧アクセス数\n約6万件（平成26年度）\n\n・窓口来庁者数　約1.4万人/年\n・認定道路網図システム閲覧アクセス数\n約12万件/年（平成28年度）","従来、窓口対応であった道路台帳の一部の情報の閲覧を、ホームページに公開したことで、市民等が来庁せずに情報を得ることが可能となった。認定道路網図システム閲覧アクセス数が平成26年度（約6万件）と比較し、平成28年度（約12万件）は、ほぼ2倍の実績となっており、市民等に有効に活用されている。更なる市民サービスの向上、行政運営の効率化を図るため、市民ニーズの把握やより多くの道路に関する情報提供が必要となる。","⑥ ＩＣＴ活用","ホームページで道路工事、公共基準点、道路区域線設置箇所を公開するシステム拡充を図り、市民サービスの向上、行政運営の効率化を図る。","路政課"]
[null,null,null,null,null,"モノ","千葉市道路管理システム","―","＜参考＞\n前年度決算額"]
[null,null,null,"他都市等の状況",null,"カネ","歳出予算額  　104百万円\n（うち一般財源 96百万円) \n【主なもの】\n道路台帳整備委託\n89百万円",99,"歳出予算額　86百万円\n（うち一般財源　80百万円）"]
[null,null,null,"道路台帳のホームページによる閲覧サービス　政令市：横浜市他12\n道路工事に関する情報をホームページで閲覧サービスしている政令市：名古屋市他8"]
[]
[]
["施策",null,null,"5-2-1",{"$f":"IF(D164=\"\",\"←施策番号を選択してください。\",VLOOKUP(D164,W$204:X$1139,2,1))","v":"産業の振興"},null,null,"一般会計"]
["No.","新規","事務事業（業務）名","事務事業（業務）概要",null,"現状分析",null,null,null,"課題抽出",null,"今後の方向性",null,"所管課"]
[null,null,null,"目標（目的）","主な内容","事務事業（業務）に\n必要な行政資源",null,"コスト換算\n（単位：百万円）","行政コストの合計額\n（単位：百万円）","主な実績・効果","分析・評価","改善・改革の\n手法","今後の方向性"]
[null,null,null,"【（事務事業（業務）を行い）誰（何）が、どのような状態になることを目指すのか】","【サービス等の提供内容や提供先】",null,null,null,null,"【利用者数・件数等】","【現在どのような状態で、どのような課題があるのか】"]
["1",null,"企業立地を促進するための道路整備","工業団地等へのアクセスを改善することにより、利便性が向上し、企業立地の促進や立地企業の投資拡大を促す。","（提供内容）\n①千葉土気緑の森工業団地\n・千葉外房有料道路（大木戸ICフル化）\n\n②長沼・六方地区工業団地\n・市道東寺山町山王町線外１の整備\n\n（提供先）\n・道路の利用者","ヒト","職員1.57人\n（正規1.57人）",13,{"$f":"SUM(H168:H171)","v":404},"千葉外房有料道路（大木戸ICフル化）が平成29年3月に供用\n　　　　\n千葉土気緑の森工業団地の分譲状況\n　・平成26年3月時点　76.4％\n　　（事業着手前）\n　・平成28年12月時点 82.8％ 　　　　\n　※6.8ヘクタール分譲\n\n","・千葉土気の森工業団地については、道路整備により、企業立地が促進されれている。今後も企業立地の促進が期待でき、税源の涵養・雇用の創出効果や地域経済の活性化が期待される。\n\n・長沼六法地区工業団地については、東寺山町山王町線の早期供用を目指し用地取得を進めている。\n\n・引き続き事業の推進を図るため、経費の削減に努めていく必要がある。\n","② 課題抑制","最新の工法や材料を取り入れることなどにより、さらなる建設コストの低減を図る。","道路建設課"]
[null,null,null,null,null,"モノ","－","－","＜参考＞\n前年度決算額"]
[null,null,null,"他都市等の状況",null,"カネ","歳出予算額391百万円\n（うち一般財源24百万円）\n【主なもの】\n工事請負費\n　90百万円\n公有財産購入費\n　86百万円\n補償費\n　193百万円",391,"歳出決算額377百万円（うち一般財源7百万円）"]
[null,null,null,"－"]
[]
[]
["施策",null,null,"5-3-3",{"$f":"IF(D174=\"\",\"←施策番号を選択してください。\",VLOOKUP(D174,W$204:X$1139,2,1))","v":"農村と森林の持つ多面的機能の活用"},null,null,"農業集落排水特会"]
["No.","新規","事務事業（業務）名","事務事業（業務）概要",null,"現状分析",null,null,null,"課題抽出",null,"今後の方向性",null,"所管課"]
[null,null,null,"目標（目的）","主な内容","事務事業（業務）に\n必要な行政資源",null,"コスト換算\n（単位：百万円）","行政コストの合計額\n（単位：百万円）","主な実績・効果","分析・評価","改善・改革の\n手法","今後の方向性"]
[null,null,null,"【（事務事業（業務）を行い）誰（何）が、どのような状態になることを目指すのか】","【サービス等の提供内容や提供先】",null,null,null,null,"【利用者数・件数等】","【現在どのような状態で、どのような課題があるのか】"]
["1",null,"農業集落排水事業管理運営","区域内の汚水処理を適正に行うことにより、河川や農業用用排水路の水質保全と農村環境の向上を図る。","（提供内容）\n・処理区域における、生活排水処理\n\n・市職員による使用料徴収等事務\n【内容】\n使用料の算定・調定に関する事務\n使用料の徴収事務\n収納金の整理事務\n使用料の滞納整理\n(提供先)\n農業集落排水施設使用者","ヒト","職員6.20人\n（正規6.20人）",8,{"$f":"SUM(H178:H181)","v":273},"【普及状況】\n計画世帯数 2,020世帯\n接続世帯数 1,799世帯\n接続率　　　　　89.1％\n接続人口　　 6,939人\n\n【使用料収納率】\n27年度　　　95.0％\n26年度　　　95.5％\n25年度　　　96.4％\n\n【改修計画】\n22年度　施設の機能診断を行い、それに基き保有施設を計画的に整備する「最適整備構想」を作成（4地区）\n詳細調査及び事業計画　　　　　　　　　　　　　　　　　　　　　　　　　　　　　　　　　　　　　　　　　　　　　　　　　　　　　　　　　　　　　　　　　　　　　　　　　　　　　　　　　　　　　　　　　　　　　　　　　　　　　　　　　　　　　　　　　　　　　　　\n25年度　大和田地区　　　　　　　　　27年度　平川地区　\n実施設計\n28年度　大和田地区","人口減少及び高齢化等により使用料の増加及び接続率の向上は難しい状況にある。\n\n使用料徴収事務を直営で行っているが、収納率が年々低下している。\nまた、施設の老朽化により、修繕対象施設が増加傾向にあるため、計画的に修繕を行う必要がある。\n","② 課題抑制","計画的に老朽化施設の改築・更新（機能強化）を実施する。","下水道経営課\n農業集落排水事業室"]
[null,null,null,null,null,"モノ","【主なもの】\n処理区　１０地区\n処理場　９か所\n管路延長　１１８ｋｍ\n中継ポンプ　１３９か所",57,"＜参考＞\n前年度決算額",null,null,"③ 整理統合","会計統合を目指すとともに、使用料賦課徴収業務の下水道使用料徴収委託との一元化等、効率的な事業運営の検討をする。"]
[null,null,null,"他都市等の状況",null,"カネ","歳出予算額208百万円\n（うち一般財源74百円）\n【主なもの】\n工事請負費 66百万円\n委託料　　 　54百万円\n光熱水費　　30百万円\n",208,"歳出予算額115百万円\n（うち一般財源44百円）\n【主なもの】\n委託料　　 46百万円\n光熱水費　25百万円\n"]
[null,null,null,"【使用料収納率】\n政令市　仙台市　83.3%         県内　市原市 99.7%\n　　　　　　静岡市 96.4%　　             佐倉市 98.8%　　　　\n　　　 　相模原市 84.9%               袖ヶ浦市 98.4%\n【改修計画】\n保有施設を計画的に整備する「最適整備構想」を策定している市：５市町（千葉市は除く）\n茂原市・山武市・九十九里町・一宮町・長南町"]
[]
[]
["施策",null,null,"9-9-9",{"$f":"IF(D184=\"\",\"←施策番号を選択してください。\",VLOOKUP(D184,W$204:X$1139,2,1))","v":"その他"},null,null,"一般会計"]
["No.","新規","事務事業（業務）名","事務事業（業務）概要",null,"現状分析",null,null,null,"課題抽出",null,"今後の方向性",null,"所管課"]
[null,null,null,"目標（目的）","主な内容","事務事業（業務）に\n必要な行政資源",null,"コスト換算\n（単位：百万円）","行政コストの合計額\n（単位：百万円）","主な実績・効果","分析・評価","改善・改革の\n手法","今後の方向性"]
[null,null,null,"【（事務事業（業務）を行い）誰（何）が、どのような状態になることを目指すのか】","【サービス等の提供内容や提供先】",null,null,null,null,"【利用者数・件数等】","【現在どのような状態で、どのような課題があるのか】"]
["1",null,"技術管理事務","多様化する公共事業に対する社会的ニーズや自然災害時などに適切に対応する技術職員を育成し、設計・積算・監督・検査業務の基準整備等により、公共事業の品質を確保する。","（提供内容）\n・技術職員人材育成プログラムの実施。\n・建設工事等の積算、技術基準の調整、安全対策指導及び工事検査の実施。\n\n（提供先）\n市職員（建設部門）及び市民","ヒト","職員17.4\n（正規1２.0人、再任用4.6、非常勤0.8人）",146,{"$f":"SUM(H188:H191)","v":218},"\n・総合評価落札方式158件/年\n・工事評定点（土木）\n　総合評価方式採用　79.6点\n　総合評価以外　　　　76.1点\n　（平成24年～27年の平均）\n・部門研修　27件/年,参加延べ人数1091人/年\n・短期派遣研修　241件/年,参加延べ人数379人/年\n・建設資材価格特別調査　18,000品目/年\n・工事検査　541件/年\n・積算基準改定　2回/年\n","総合評価落札方式の採用や適切な予定価格の積算などにより、公共工事の品質確保が図られ、また、設計・積算業務の電算化により、事務の効率化が図られている一方で、経験豊富な技術職員の大量退職などにより技術力の低下が懸念されていることから、将来に亘り、技術職員の人材育成を継続し実施していく必要がある。\nまた、これまで、所属毎のOJT等により、技術職員の技術力向上に一定の効果があったものの、さらに、キャリア形成に資する効率的な人材育成が必要である。","⑦ 資産活用","建設局独自の技術職員人材育成プログラムの継続実施及び対象職員の拡大。","技術管理課"]
[null,null,null,null,null,"モノ",null,null,"＜参考＞\n前年度決算額"]
[null,null,null,"他都市等の状況",null,"カネ","歳出予算額72百万円\n（うち一般財源72百万円）\n【主なもの】\n委託料48百万円\n使用料及び賃借料\n1５百万円\nその他9百万円",72,"歳出決算額64百万円\n（うち一般財源64百万円）\n【主なもの】\n委託料4４百万円\n使用料及び賃借料\n14百万円\nその他6百万円"]
[null,null,null,"　技術職員研修計画を策定している政令市：相模原市ほか11市（平成27度末現在）"]
[]
[]
["施策",null,null,"9-9-9",{"$f":"IF(D194=\"\",\"←施策番号を選択してください。\",VLOOKUP(D194,W$204:X$1139,2,1))","v":"その他"},null,null,"下水道事業会計"]
["No.","新規","事務事業（業務）名","事務事業（業務）概要",null,"現状分析",null,null,null,"課題抽出",null,"今後の方向性",null,"所管課"]
[null,null,null,"目標（目的）","主な内容","事務事業（業務）に\n必要な行政資源",null,"コスト換算\n（単位：百万円）","行政コストの合計額\n（単位：百万円）","主な実績・効果","分析・評価","改善・改革の\n手法","今後の方向性"]
[null,null,null,"【（事務事業（業務）を行い）誰（何）が、どのような状態になることを目指すのか】","【サービス等の提供内容や提供先】",null,null,null,null,"【利用者数・件数等】","【現在どのような状態で、どのような課題があるのか】"]
["1",null,"下水道使用料賦課徴収事務","下水道使用料を、適正に賦課徴収することにより、下水道事業の健全な経営を目指す。","（提供内容）\n・下水道使用料の算定・調定に関する事務\n・下水道使用料の賦課・徴収事務\n・下水道使用料の収納金整理事務\n・下水道使用料の滞納整理事務\n・千葉県水道局との上下水道料金徴収一元化に関する事務\n（提供先）\n公共下水道利用者\n","ヒト","職員10.20人\n（正規9.60人、非常勤0.60人）",78,{"$f":"SUM(H198:H201)","v":1106},"\n下水道使用料収納率\n（各年度末（5月）時点）\n\n28年度　　　95.4％\n27年度　　　95.1％\n26年度　　　94.8％\n\n\n","\n\n下水道使用料収納率は年々向上しているものの、平成27年度末（5月時点）の収納率は政令指定都市20市中最下位であり、健全経営を行う上で、収納率の向上が課題となっている。\nなお、本市以外の政令指定都市は上下水道料金の一括徴収を実施しており、水道料金と一括した請求をしていることが良好な収納率を実現している理由であると思われる。\n本市でも、良好な収納率の実現と住民サービスの向上のため、平成30年1月に向けて千葉県水道局との徴収一元化が確実に実施できるよう取り組んでいく。\n徴収一元化実施以降は他政令指定都市に比し遜色ない収納率を実現できると想定している。","⑧ その他","厳正な滞納整理のために、早期に財産調査を行い、引き続き、差押え等の強化に努め、前年度を超える収納率を目指す。","下水道営業課"]
[null,null,null,null,null,"モノ","－","－","＜参考＞\n前年度決算額","\n早期の財産調査及び差押え等の滞納整理の強化、口座振替の推進等により、平成28年度の収納率は、第2期財政健全化プランの目標値95.0％を達成した。",null,"③ 整理統合","平成30年１月より千葉県水道局と上下水道料金徴収一元化を実施。"]
[null,null,null,"他都市等の状況",null,"カネ","歳出予算額　1,028百万円\n【主なもの】\n上下水道料金徴収事務委託料　427百万円\n上下水道料金システム開発費等負担金　117百万円\n千葉県水道局への徴収事務委託　132百万円\n（参考）\n歳入予算額　15,625百万円\n【下水道使用料】",1028,"歳出決算額　719百万円\n【主なもの】\n上下水道料金徴収事務委託料　422百万円\n（参考）\n歳入決算額　14,386百万円\n【下水道使用料】",null,null,"⑤ 連携・協働"]
[null,null,null,"関東圏内政令指定都市の下水道使用料収納率\n（Ｈ27年度末（5月）時点）\n川崎市　　　 99.5%\n横浜市　　　 99.3%\nさいたま市　98.8%\n相模原市    97.9%"]
[]
[]
[null,null,null,null,null,null,null,null,null,null,null,null,null,null,null,null,null,null,null,null,"① 調達改革",null,"1-1-1","緑と水辺の保全・活用"]
[null,null,null,null,null,null,null,null,null,null,null,null,null,null,null,null,null,null,null,null,"② 課題抑制",null,"1-1-2","やすらぎとにぎわいのある海辺の創出"]
[null,null,null,null,null,null,null,null,null,null,null,null,null,null,null,null,null,null,null,null,"③ 整理統合",null,"1-2-1","公園緑地の充実"]
[null,null,null,null,null,null,null,null,null,null,null,null,null,null,null,null,null,null,null,null,"④ アウトソーシング",null,"1-2-2","都市緑化の推進"]
[null,null,null,null,null,null,null,null,null,null,null,null,null,null,null,null,null,null,null,null,"⑤ 連携・協働",null,"1-2-3","花のあふれるまちづくりの推進"]
[null,null,null,null,null,null,null,null,null,null,null,null,null,null,null,null,null,null,null,null,"⑥ ＩＣＴ活用",null,"1-3-1","低炭素社会の実現に向けた取組みの推進"]
[null,null,null,null,null,null,null,null,null,null,null,null,null,null,null,null,null,null,null,null,"⑦ 資産活用",null,"1-3-2","循環型社会の実現に向けた取組みの推進"]
[null,null,null,null,null,null,null,null,null,null,null,null,null,null,null,null,null,null,null,null,"⑧ その他",null,"1-3-3","良好な生活環境の確保"]
[null,null,null,null,null,null,null,null,null,null,null,null,null,null,null,null,null,null,null,null,null,null,"1-3-4","環境保全・創造活動の推進"]
[null,null,null,null,null,null,null,null,null,null,null,null,null,null,null,null,null,null,null,null,null,null,"2-1-1","健康づくりの推進"]
[null,null,null,null,null,null,null,null,null,null,null,null,null,null,null,null,null,null,null,null,null,null,"2-1-2","医療体制の充実"]
[null,null,null,null,null,null,null,null,null,null,null,null,null,null,null,null,null,null,null,null,null,null,"2-1-3","食の安全と環境衛生の推進"]
[null,null,null,null,null,null,null,null,null,null,null,null,null,null,null,null,null,null,null,null,null,null,"2-2-1","子育て支援の充実"]
[null,null,null,null,null,null,null,null,null,null,null,null,null,null,null,null,null,null,null,null,null,null,"2-2-2","こどもの健全育成の推進"]
[null,null,null,null,null,null,null,null,null,null,null,null,null,null,null,null,null,null,null,null,null,null,"2-3-1","地域福祉の充実"]
[null,null,null,null,null,null,null,null,null,null,null,null,null,null,null,null,null,null,null,null,null,null,"2-4-1","介護予防と生きがいづくりの促進"]
[null,null,null,null,null,null,null,null,null,null,null,null,null,null,null,null,null,null,null,null,null,null,"2-4-2","地域生活支援の充実（高齢者）"]
[null,null,null,null,null,null,null,null,null,null,null,null,null,null,null,null,null,null,null,null,null,null,"2-4-3","介護保険サービスの充実"]
[null,null,null,null,null,null,null,null,null,null,null,null,null,null,null,null,null,null,null,null,null,null,"2-5-1","療育体制と相談支援の充実"]
[null,null,null,null,null,null,null,null,null,null,null,null,null,null,null,null,null,null,null,null,null,null,"2-5-2","地域生活支援の充実（障害のある人）"]
[null,null,null,null,null,null,null,null,null,null,null,null,null,null,null,null,null,null,null,null,null,null,"2-5-3","就労支援と社会参加の促進"]
[null,null,null,null,null,null,null,null,null,null,null,null,null,null,null,null,null,null,null,null,null,null,"3-1-1","学校教育の振興"]
[null,null,null,null,null,null,null,null,null,null,null,null,null,null,null,null,null,null,null,null,null,null,"3-1-2","地域の教育力の向上"]
[null,null,null,null,null,null,null,null,null,null,null,null,null,null,null,null,null,null,null,null,null,null,"3-1-3","こどもの参画の推進"]
[null,null,null,null,null,null,null,null,null,null,null,null,null,null,null,null,null,null,null,null,null,null,"3-2-1","生涯学習の推進"]
[null,null,null,null,null,null,null,null,null,null,null,null,null,null,null,null,null,null,null,null,null,null,"3-2-2","スポーツ・レクリエーション活動の推進"]
[null,null,null,null,null,null,null,null,null,null,null,null,null,null,null,null,null,null,null,null,null,null,"3-3-1","文化・芸術の振興"]
[null,null,null,null,null,null,null,null,null,null,null,null,null,null,null,null,null,null,null,null,null,null,"3-3-2","文化的財産の保全と活用"]
[null,null,null,null,null,null,null,null,null,null,null,null,null,null,null,null,null,null,null,null,null,null,"3-4-1","国際化の推進"]
[null,null,null,null,null,null,null,null,null,null,null,null,null,null,null,null,null,null,null,null,null,null,"3-4-2","大学・企業等との連携の推進"]
[null,null,null,null,null,null,null,null,null,null,null,null,null,null,null,null,null,null,null,null,null,null,"3-5-1","市民参加・協働の推進"]
[null,null,null,null,null,null,null,null,null,null,null,null,null,null,null,null,null,null,null,null,null,null,"3-5-2","男女共同参画の推進"]
[null,null,null,null,null,null,null,null,null,null,null,null,null,null,null,null,null,null,null,null,null,null,"4-1-1","防災対策の推進"]
[null,null,null,null,null,null,null,null,null,null,null,null,null,null,null,null,null,null,null,null,null,null,"4-1-2","防災体制の充実"]
[null,null,null,null,null,null,null,null,null,null,null,null,null,null,null,null,null,null,null,null,null,null,"4-1-3","消防・救急体制の充実"]
[null,null,null,null,null,null,null,null,null,null,null,null,null,null,null,null,null,null,null,null,null,null,"4-1-4","交通安全の推進"]
[null,null,null,null,null,null,null,null,null,null,null,null,null,null,null,null,null,null,null,null,null,null,"4-1-5","防犯対策の推進"]
[null,null,null,null,null,null,null,null,null,null,null,null,null,null,null,null,null,null,null,null,null,null,"4-1-6","消費生活の安定・向上"]
[null,null,null,null,null,null,null,null,null,null,null,null,null,null,null,null,null,null,null,null,null,null,"4-2-1","市街地の整備"]
[null,null,null,null,null,null,null,null,null,null,null,null,null,null,null,null,null,null,null,null,null,null,"4-2-2","計画的な土地利用の推進"]
[null,null,null,null,null,null,null,null,null,null,null,null,null,null,null,null,null,null,null,null,null,null,"4-2-3","良好な都市景観の形成"]
[null,null,null,null,null,null,null,null,null,null,null,null,null,null,null,null,null,null,null,null,null,null,"4-2-4","住宅・住環境の充実"]
[null,null,null,null,null,null,null,null,null,null,null,null,null,null,null,null,null,null,null,null,null,null,"4-2-5","生活基盤の充実"]
[null,null,null,null,null,null,null,null,null,null,null,null,null,null,null,null,null,null,null,null,null,null,"4-3-1","公共交通ネットワークの形成"]
[null,null,null,null,null,null,null,null,null,null,null,null,null,null,null,null,null,null,null,null,null,null,"4-3-2","道路ネットワークの形成"]
[null,null,null,null,null,null,null,null,null,null,null,null,null,null,null,null,null,null,null,null,null,null,"4-3-3","人にやさしい移動環境の創出"]
[null,null,null,null,null,null,null,null,null,null,null,null,null,null,null,null,null,null,null,null,null,null,"4-3-4","ＩＣＴを活かした利便性の向上"]
[null,null,null,null,null,null,null,null,null,null,null,null,null,null,null,null,null,null,null,null,null,null,"5-1-1","都心などの魅力向上"]
[null,null,null,null,null,null,null,null,null,null,null,null,null,null,null,null,null,null,null,null,null,null,"5-1-2","都市の国際性の向上"]
[null,null,null,null,null,null,null,null,null,null,null,null,null,null,null,null,null,null,null,null,null,null,"5-1-3","観光の振興と魅力の創出・発信"]
[null,null,null,null,null,null,null,null,null,null,null,null,null,null,null,null,null,null,null,null,null,null,"5-2-1","産業の振興"]
[null,null,null,null,null,null,null,null,null,null,null,null,null,null,null,null,null,null,null,null,null,null,"5-2-2","新事業の創出"]
[null,null,null,null,null,null,null,null,null,null,null,null,null,null,null,null,null,null,null,null,null,null,"5-2-3","商業・サービス産業の振興"]
[null,null,null,null,null,null,null,null,null,null,null,null,null,null,null,null,null,null,null,null,null,null,"5-2-4","物流・港湾機能の強化"]
[null,null,null,null,null,null,null,null,null,null,null,null,null,null,null,null,null,null,null,null,null,null,"5-2-5","勤労者の支援と雇用の創出"]
[null,null,null,null,null,null,null,null,null,null,null,null,null,null,null,null,null,null,null,null,null,null,"5-3-1","新鮮で安全・安心な農畜産物の安定供給"]
[null,null,null,null,null,null,null,null,null,null,null,null,null,null,null,null,null,null,null,null,null,null,"5-3-2","安定した農業経営体の育成"]
[null,null,null,null,null,null,null,null,null,null,null,null,null,null,null,null,null,null,null,null,null,null,"5-3-3","農村と森林の持つ多面的機能の活用"]
[null,null,null,null,null,null,null,null,null,null,null,null,null,null,null,null,null,null,null,null,null,null,"9-9-9","その他"]